Workbook

Sheet Støtteberegninger (hidden)
F2: Per årsso | G2: Per smågrisestiplads | H2: Per slagetgrise stiplads
E3: Beløb per årsso | F3: =F14/1000 -> 22826.50535 | G3: =N19 -> 2200 | H3: 3600 | I3: 2600
E4: Andel lokalitet | F4: =SUM(F16:F18)*(1-H15)/F24 -> 1132.193782 | G4: =H15*SUM(F16:F20)/F54 -> 109.1199149 | H4: =745+225 -> 970 | I4: =H4 -> 970
E5: I alt | F5: =SUM(F3:F4) -> 23958.69913 | G5: =SUM(G3:G4) -> 2309.119915 | H5: =SUM(H3:H4) -> 4570 | I5: =SUM(I3:I4) -> 3570
L6: 2024 prisestimater sostipladser | M6: Pris per stiplads | N6: Pris per stiplads inkl. fodersilo og gylleopbevaring | O6: Nettoareal kvm/stiplads/gris | P6: I alt kvm/stiplads med gange og backbone
F7: Per årsso | G7: Per smågrisestiplads | H7: Per slagetgrise stiplads trad. | I7: Per slagtegrisestiplads rundbue | L7: Kassesti | M7: 31350 | N7: 32000 | O7: 4.59 | P7: 6.09
F8: 23000 | G8: 2200 | H8: 3600 | I8: 2600 | L8: Løsdrift faresti | M8: 42850 | N8: 43500 | O8: 6.51 | P8: 8.84
F9: 1150 | G9: 110 | H9: 1000 | I9: 1000 | L9: Løbestiplads med ornetillæg | M9: 18100 | N9: 18400 | O9: 2.54 | P9: 3.17
E10: lalt | F10: =SUM(F8:F9) -> 24150 | G10: =SUM(G8:G9) -> 2310 | H10: 4600 | I10: 3600 | L10: Sygesti | M10: 12900 | N10: 12900 | O10: 2.8 | P10: 3.47
E11: Lang afskrivningstid % af total | F11: 67 | G11: 67 | H11: 79 | I11: =100*(1-H12/I10) -> 73.16666667 | L11: Drægtighedstalde
H12: =H10-H10*H11% -> 966 | L12: Gulvfodring | M12: 10150 | N12: 11750 | O12: 2.11 | P12: 2.34
E13: Investeringsbeløb/scenarie nr. | F13: 1 | L13: Vådfoder i langkrybbe | M13: 10690 | N13: 12290 | O13: 2.29 | P13: 2.52
E14: Investering sohold | F14: 22826505.35 | L14: Ædeboks per so | M14: 13800 | N14: 15350 | O14: 2.7 | P14: 2.96
E15: Investering smågrise | F15: 13359452.05 | H15: =F15/SUM(F14:F15) -> 0.3691888515 | L15: Elektronisk sofodring | M15: 10150 | N15: 11750 | O15: 2.11 | P15: 2.34
E16: Investering lokalitet | F16: 981500 | L16: Polte 30-110 kg | M16: 5900 | N16: 6400 | O16: 1.3 | P16: 1.5
E17: Investering i grusveje (estimat) | F17: 338130 | L17: Polte > 110 kg | M17: 8400 | N17: 8400 | O17: 1.9 | P17: 2.2
E18: Investering personale faciliteter | F18: 475192.0868 | H18: =SUM(F16:F18) -> 1794822.087 | I18: =H15*H18 -> 662628.3049 | L18: Smågrise
E19: Investering i foderlader og korngrave | F19: 0 | L19: Smågrisestald | M19: 1950 | N19: 2200 | O19: 0.33 | P19: 0.41
E20: Investering miljøteknologi | F20: 0
E21: I alt | F21: 37980779.49
L22: Slagtegrisefoder | M22: 2.05 | N22: kr/fesv
E23: Per til og med fravænniong | F23: =F14+(1-H15)*H18 -> 23958699.13 | N23: ="+/-" -> +/-
E24: Årssøer | F24: =1000 -> 1000 | L24: Sofoder | M24: =M$22+N24 -> 2.11 | N24: 0.06
E25: Per årsso | F25: =F23/F24 -> 23958.69913 | L25: Smågiseblanding 1 | M25: =M$22+N25 -> 3.98 | N25: =3.98-2.05 -> 1.93
L26: Smågiseblanding 2 | M26: 2.17 | N26: =2.17-2.05 -> 0.12
E27: per smågris | F27: =N19+I18/F54 -> 2309.119915 | L27: Slagtegrisefoder | M27: 2.05 | N27: 0
M29: Notering | N29: Efterbetaling | O29: I alt
L30: Langsigtet prognose | M30: 11.5 | N30: 1 | O30: =M30+N30 -> 12.5
E31: Stipladsberegninger
E32: Scenarie nr. | F32: 1
E33: Årssøer i anlæg | F33: 1000
E34: Antal sohold valgt | F34: 21
E35: Median fravænningsalder grise | F35: 25
E36: Fravænnede grise per årsso i beregning | F36: 39.1
E37: Valgte driftsformer
E38: Fodringssystem drægtighedstald | F38: Elektronisk sofodring
E39: Driftsform drægtighedstald | F39: Dynamisk
E40: Driftsform farestald og placering ammesøer | F40: S-drift
E41: Pladser/scenarie | F41: 1
E42: Løbe-stald, stipladser | F42: 99.0603419
E43: Drægtighedsstalden, stipladser | F43: 661
E44: Opsamlingsstipladser til omløbere som bliver på starthold | F44: 0
E45: Flyttestipladser | F45: 44
E46: Farestier | F46: 257
E47: Sygestipladser | F47: 22.78953923
E48: Mindre raskmeldingstipladser | F48: 0
E49: I alt pladser til søer- minus flyttepladser | F49: 1039.849881
E50: Polte kalkuler
E51: Små poltepladser i en klimastald (udregnes kun ved salg ved fravænning, og egenproducerede polte | F51: 0
E52: Poltestald fra 30 -110 kg, stipladser | F52: 0
E53: Poltepladser > 110 kg, stipladser | F53: 148.4
E54: Smågrisestipladser (sygestier medregnet) | F54: 6072.478207
E55: Areal kmv/foderdag/smågrise | F55: 0.33

Sheet Vejledning
E1: Støttet af:
A8: Spørgsmål til regnearket kan rettes til Michael Groes Christiansen, tlf. 5135 9333, e-mail: | H8: mgc@seges.dk
A9: Ansvarsfraskrivelse: SEGES Innovation påtager sig intet ansvar for resultaterne ved anvendelse af dette program. SEGES innovation er således ikke ansvarlig for hverken direkte eller indirekte tab som brugere måtte lide ved at disponere på baggrund af tal og beregninger fra programmet.
A11: Vejledning til rentabilitetsberegning – version 1.05 | D11: 2025-12-11
A12: Formålet med regnearket er at beregne rentabiliteten ved et byggeprojekt af en ny svineejendom baseret på langsigtede realistiske forudsætninger.
A13: Til dette formål forsøger SEGES Innovation at stille fælles mellem-langsigtede prognoser for smågrisepriser og danske afregningspriser til rådighed.
A14: Disse prognoser er baseret på forventninger til fremtiden, der som oftest er baseret på, hvordan det historisk har været at sælge smågrise eller få rentablitet i dansk svineproduktion for en gennemsnitsproducent.
A15: Prognosen på mellenlang sigt er p.t. 2,00 kr./FEsv for indkøbt slagtesvinefoder og en gennnemsnitlig afregningspris på ca. 12,5 kr./kg, hvoraf basisnotering udgør de 11,8 kr./kg.
A16: Afregningspriser og foderpriser følges oftest ad. Besætningens egen foderpris kan være lavere/højere men bør sættes i forhold til den langsigtede foderprisprognose.
A17: Tillæg/fradrag pr. smågris i forhold til beregnet smågrisenotering sker på eget ansvar. Tillæg på smågrise kan skyldes undenlandsk efterspørgsel efter smågrise.
A18: SEGES Innovation, forventer at standardtillæg i Danmark pr. smågris er cirka 20 kr./smågris i fremtidige kalkuler, men afhænger af kvalitet og mængder.
A20: Programmet kan beregne
A21: En investeringsafkastningsgrad (AG).
A22: EVA (økonomisk værdi tilføjet) = AG-WACC.
A23: WACC er engelsk for en vægtet kalkulationsrente (læs senere i vejledning).
A24: Investeringens tilbagebetalingstid i år ekskl. besætningsværdien. Besætningsværdien betragtes som et kort aktiv, der til enhver tid kan elimeres (dog med noget tab).
A25: Projektets kapitalværdi (kun positiv hvis AG > WACC), en tilbagediskontering af pengestrøm med WACC.
A26: Nulpunktsnotering og sikkersmargin i forhold til langtidsprognosen men kun i arket Investerings kalkule med makro
A27: Resultat pr. gris.
A29: Eksempel på hvordan WACC beregnes: FINANSIERINGSANDELE OG RENTESATSER
A30: FINANSIERINGSKILDE: | B30: ANDELE | C30: AKTUEL RENTE INKL. ADM. OMK.
A31: Realkredit Fast | B31: 0.1 | C31: =4+0.6 -> 4.6
A32: Realkredit Variabel | B32: 0.5 | C32: =3+0.6 -> 3.6
A33: Bank | B33: 0.3 | C33: =6+0.6 -> 6.6
A34: Vækstfond ea. | B34: 0 | C34: 8.25
A35: Egenkapital | B35: 0.1 | C35: 6
A36: WACC | B36: =SUM(B31:B35) -> 1 | C36: =SUMPRODUCT(B31:B35,C31:C35) -> 4.84
A37: WACC uden egenkapitalforretningskrav | C37: =C36-B35*C35 -> 4.24
A39: Hvis WACC uden egenkapital bruges, bliver renteomkostninger lavere.
A40: Egenkapitalens forretning er så: EVA/(egenkapital i % af investeret kapital).
A41: En EVA på 1 % med 10 % egenkapitalfinansiering, svarer til 10 % i egenkapital forretning.
A43: Vejledning til regnearket
A45: Forudsætninger indlægges i farvede celler
A46: I gule celler kan der indlægges egne værdier
A48: Input til langsigtet prognose.
A49: Anbefalet prrognose prisniveau på mellemlang sigt fra SEGES er 2 kr. FEsv/slagtegrisefoder og 11,5 kr./kg i notering
A51: Programmet funktionalitet er bedst med makro slået til
A52: Hvis programmet afvikles uden makro, er målsøgning nøjagtig nulpunktsnotering sat ud af kraft.
A53: Der er tre driftsgrene: søer, smågrise og slagtesvin.
A55: Produktivitet og investeringsomfang
A56: Det forudsættes som udgangspunkt at anlægget vil have en produktivitet på niveau med
A57: de 33 % bedste svinebedrifter.
A58: Når programmet åbnes er årssøer samt alle smågrise- og slagtesvinestipladser sat til nul.
A59: De indlagte stipladspriser er for cirka 1.200 søer, cirka 6.000 smågrisestipladser og 5.000 slagtesvinepladser.
A60: Oplyste antal stiplads bruges til at beregne produktionsomfang og er pr. årsso eller til indsatte grise.
A61: Ekstra stipladser i form af sygestier eller bufferstier skal derfor ikke indlægges, men de skal inkluderes i stipladsprisen.
A62: Stipladspriser er for et funktionsdygtigt anlæg uden miljøteknologi. Programmets stipladspriser kan overskrives med egne.
A63: Miljøteknologi investering pr. stiplads indlægges særskilt.
A64: Der indlægges en del produktivitetsoplysninger i den indledende fase om foderforbrug samt forventet salgsvægt.
A65: Priser for grise op til 40 kg findes automatisk af programmet, og er således fra beregnet smågrisenotering ved given notering og foderpris på landsplan.
A67: Værdier og input kan også overskrives i rentablitetskalkulens gule celler
A68: Bruger er således først færdig, når gule celler i denne del af programmet er gennemgået for egne justeringer.
A69: Først når de cirka 2 sider/driftgren er gennemgået, bør nulpunktnotering findes via makroknap.
A71: Tillæg/fradrag til smågrisepris(er). Korrektion for mængde- og kvalitetstillæg.
A72: Transportpriser
A73: Egne Foderpriser. Forventede gennemsnitlige foderpriser over investeringens levetid set i forhold til langtidsprognosens priser.
A74: Timeløn. Forventet timeløn til ansatte eller minutpris ved smågrise og slagtesvin.
A75: Tidsforbrug. Antal time pr. årsso samt antal minutter pr. smågris og pr. slagtesvin.
A76: Hvis gyllens nettoværdi er positiv skrives enhedsværdien/ton med negativt fortegn.
A77: Disse faktorer er de vigtigste at tage stilling til, men de øvrige faktorer bør også gennemgås og tilrettes.
A79: Kontante kapacitetsomkostninger
A80: Generelt er det forudsat, at de kontante kapacitetsomkostninger vil ligge
A81: på niveau med de 33 % bedste med hensyn til kapacitetsomkostninger i Danmark.
A83: Afskrivninger er udspecificeres på bygninger/inventar samt miljøteknologi samt diverse, som dækker renteomkostning under byggerifasen, ind- afkøringstab samt miljøtilladelse.
A86: Vigtigt: Alle levetider skal være angivet i halve eller hele år.
A87: Afskrivninger på inventar etc.: Afrundes med loft til heltal i forhold til bygningens levetid. Hvis bygning holder 25 år, inventar kun 10 år, skal der investeres 3 gange i inventar ink. start investering.
A88: Alle reinvesteringer, som foretages mere end 5 gange set i forhold til bygningens levetid (eksemplevis noget miljøteknologi), skal tages som driftsomkostning og ikke som investering.
A89: Tilskud fratrækkes afskrivninger og fordeles på bygningens levetid. Det vides eksemplevis ikke, om der er tilskud om 13 år, hvis en en mlijøteknologi skal erstattes til den tid.
A91: Renteomkostninger: Investeret kapital forudsættes afdraget så hurligt som muligt i beregninger via pengestrømmen før afskrivninger og renteomkostninger (EBID) sat i forhold til restgæld. Renteomkostningen er dynamisk, det vil sige, at den er baseret på pengestrømsanalyse i projektets levetid.
A93: Ordinært resultat og resultat per enhed
A94: Hvis investeringen er lønsom er ordinært resultat og resultat ens.
A95: Der er kun forskel på ordinært resultat og resultat, hvis investeringen ikke er lønsom ved en givent niveau, fx ved lav notering.
A96: Årsagen er, at afskrivninger, medtaget i rentabilitetskalkulen, reelt ikke er afdraget til investorer.
A97: Derfor indlægges der en ekstraordinær renteomkostning, baseret på at ikke-afdragne afskrivninger forrrentes 5 år ekstra *0,5 * WACC som ikke fremgår af cashflow opstilling.
A99: Rentabilitet
A100: Alle resultater er før skat.
A102: Beregningsmæssige forhold
A103: Alle berenginger er før skat. Der gøres opmærksom på, at der ikke er indlagt hverken prisstigninger, effektivitetsstigninger,
A104: scrapværdi eller skat. Der kan argumenteres for, at input-faktorer, fx arbejdsløn, vil stige
A105: med mere end inflationen over tid, mens der ikke er belæg for at afregningsprisen over tid
A106: har udvist nogen stigende trend, eller vil gøre det i fremtiden. Dette hænger sammen med, at
A107: der historisk har været en stigende effektivitet i svineproduktionen. Det er oplagt at forvente,
A108: at eventuelle effektivitetsforbedringer i svineproduktionen går til at betale for stigende priser
A109: på input-faktorerne. Der er ikke medtaget nogen scrapværdi, da det forventes, at stald og
A110: inventar vil være værdiløse ved investeringsperiodens afslutning.
A111: Der er ikke medtaget eventuelle omkostninger til nedrivning af staldbygninger.
A112: Der er ikke taget hensyn til virksomhedsskat.

Sheet Investerings kalkule m. makro
C2: Rentabilitetsanalyser svin ved investeringer i stald | F2: For: | G2: SEGES
C4: Navigationslink række visninger | D4: Prisprognose på mellemlang sigt | F4: So kalkule | G4: Smågrise kalkule | H4: Slagtesvin kalkule | J4: Samlet R-analyse
A5: Vis
A6: Nej
A7: Ja | C7: Styring af rækker som vises. Vælg og tryk på opdater rækkevisning | F7: Når alle input er indlagt kan nulpunkt beregnes via makroknap
A8: Ja | C8: Vis langsigtet prognose | D8: Ja | F8: Når alle input er indlagt kan nulpunkt beregnes via makroknap
A9: Ja | C9: Vis søer | D9: Ja
A10: Ja | C10: Vis smågrise | D10: Ja
A11: Ja | C11: Vis slagtesvin | D11: Ja | F11: Gule celler er input celle. Indsæt ikke egne rækker etc. I dette regneark
A12: Ja | C12: Vis cash flow søer | D12: Ja
A13: Ja | C13: Vis cash flow smågrise | D13: Ja
A14: Ja | C14: Vis cash flow slagtesvin | D14: Ja | F14: Der kan laves et kopi af arket som kan gives nyt navn, hvis man gerne vil have flere scenarier i samme regnearksfil
A15: Ja | C15: Konsolideret ved mere end 1 driftsgren | D15: Ja
A16: Ja | C16: Konsolideret cash flow | D16: Nej
A17: Ja | C17: Rentabilitetsanalyser svin ved investeringer i stalde
A18: =IF($D$8="Ja","Ja","Nej") -> Ja | C18: Prisprognose dansk griseproduktion mellemlang sigt | E18: Anbefalet prisniveau på mellemlang sigt er 2 kr. FEsv/slagtegrisefoder og 12,5 kr./kg i samlet afregning
A19: Ja | C19: Sidste længere prisprognose | D19: 2025-09-01 | F19: Normpristal
A20: Ja | C20: Indkøbt slagtegrisefoderpris prognose landsplan | D20: 2 | E20: kr./FEsv | F20: Produktionsafgift søer og slagtepolte | J20: 12.1
A21: Ja | C21: Mellemlangsigtet notering svin ved denne foderpris | D21: =11.8 -> 11.8 | E21: kr./kg | F21: Produktionsafgift slagtesvin | J21: 6.1
A22: Ja | C22: Diverse standard korrektioner, kr../kg | D22: 0.7 | F22: Genafgift søer | J22: 70
A23: Ja | C23: Gns. dansk afregningspris | D23: =D21+D22 -> 12.5 | E23: kr./kg | F23: Anslået købspris LY sopolte ved givet niveau | J23: =(D25+0.12)*125+500 -> 2077.5
A24: Ja | C24: Følsomhed notering svin (bruges af program) | D24: 0 | F24: Vedligehold bygninger af investeringssum | J24: 0.006
A25: Ja | C25: Dansk afregningspris inkl. følsomhedsfaktor | D25: =D21+D22+D24 -> 12.5 | F25: Vedligehold inventar af investeringssum | J25: 0.02
A26: Ja | C26: Afregningspris kr./kg slagtesøer | D26: =ROUND((D21+D24)*Smågrisepriser!B12,2)+(D22-Smågrisepriser!B10) -> 9.53
A27: Ja | C27: Følsomhedsanalyse (+/- 2 intervaller)
A28: Ja | C28: ="+/- gns. dansk notering kr./kg" -> +/- gns. dansk notering kr./kg | D28: 0.5 | E28: kr./kg
A29: Ja | C29: Renteniveau indlagt (wacc)
A30: Ja | C30: Kalkulationsrente i beregningerne (wacc) | D30: =Vejledning!C36% -> 0.0484 | E30: pa
A31: Ja | C31: Byggerente | D31: =D30 -> 0.0484 | E31: pa
A32: Ja | C32: Investeringens startdato | D32: 2026-01-01 | E32: Vigtig også af hensyn til klimaafgifter eller indregning af klimavirkemidler
A33: Ja
A34: Ja | C34: Klimaafgifter eller klimavirkemiddel
A35: =IF($D$8="Ja","Ja","Nej") -> Ja | C35: Søg inspiration i arket Klima. Husk at BAT teknologi også kan være et klimavirkemiddel. I så fald tag disse med som BAT omkostning, men indlæg klimavirkeeffekt
A36: Ja | C36: Klima afgifter | D36: Klima afgift Start niveau 2030, kr./enhed | E36: Klima afgift Slutniveau 2035 kr./enhed | F36: Klimavirkemiddel reduktion i % (total) | G36: Omkostning klimavirkemiddel kr./enhed | H36: Omkostning efter klimavirke-midler 2030 | I36: Omkostning efter klimavirke-midler 2035 | J36: Stigningstakt | K36: Nutidsværdi/enhed i kr./enhed
A37: Ja | C37: Søer | D37: =Klima!F8*0.4*300/1000 -> 81.3636 | E37: =Klima!F8*0.4*750/1000 -> 203.409 | F37: =Klima!I21 -> 0.321 | G37: =Klima!K21 -> 20.1294 | H37: =IF($F37<=40%,((40%-F37)/40%)*D37+$G37,G37) -> 36.198711 | I37: =IF($F37<=40%,((40%-F37)/40%)*E37+$G37,$G37) -> 60.3026775 | J37: =(I37-H37)/5 -> 4.8207933 | K37: =L215 -> 25.34843593
A38: Ja | C38: Smågrise | D38: =Klima!H8*0.4*300/1000 -> 1.7232 | E38: =Klima!H8*0.4*750/1000 -> 4.308 | F38: =Klima!I21 -> 0.321 | G38: =Klima!L21 -> 0.40704 | H38: =IF($F38<=40%,((40%-F38)/40%)*D38+$G38,G38) -> 0.747372 | I38: =IF($F38<=40%,((40%-F38)/40%)*E38+$G38,$G38) -> 1.25787 | J38: =(I38-H38)/5 -> 0.1020996 | K38: =L413 -> 0.5280495543
A39: Ja | C39: Slagtegrise | D39: =Klima!J8*0.4*300/1000 -> 7.1076 | E39: =Klima!J8*0.4*750/1000 -> 17.769 | F39: =Klima!I25 -> 0.534 | G39: =Klima!M25 -> 1.72992 | H39: =IF($F39<=40%,((40%-F39)/40%)*D39+$G39,G39) -> 1.72992 | I39: =IF($F39<=40%,((40%-F39)/40%)*E39+$G39,$G39) -> 1.72992 | J39: 0 | K39: =L624 -> 0.7900185721
A40: Ja
A41: Ja | C41: Indlagt DC model. Nybygger tilskud trappemodel
A42: Ja | C42: År fra | D42: År til | E42: Kr./kg i slagtekrop tillæg
A43: Ja | C43: 0 | D43: 1 | E43: 0.8
A44: Ja | C44: 1 | D44: 2 | E44: 0.7
A45: Ja | C45: 2 | D45: 3 | E45: 0.6
A46: Ja | C46: 3 | D46: 4 | E46: 0.5
A47: Ja | C47: 4 | D47: 5 | E47: 0.4
A48: Ja | C48: 5 | D48: 6 | E48: 0
A49: Ja | C49: 6 | D49: 25 | E49: 0
A50: Ja | E50: Simpel | F50: NPV
A51: Ja | E51: =AVERAGE(E43:E47)*5/I284 -> 0.1153846154 | F51: =D498 -> 0.105603051
A52: Ja
A53: Ja
A54: Ja
A55: Ja | C55: Tabel for smågrisenotering ved angivet notering og langsigtet foderprognose. Over 40 kg findes ingen beregnet notering
A56: Ja | C56: Indlagt notering + følsomhedsfaktor | D56: =D21+D24 -> 11.8
A57: Ja | C57: 7 kg smågrisepris | D57: =VLOOKUP(D20,Nulpunktstabel,4,FALSE)+(D56-VLOOKUP(D20,Nulpunktstabel,3,FALSE))*Normtal_slagtevægt*Finansieringssandel_7_kg -> 263.3390432 | E57: Kr./gris
A58: Ja | C58: 30 kg smågrisepris | D58: =VLOOKUP(D20,Nulpunktstabel,5,FALSE)+(D56-VLOOKUP(D20,Nulpunktstabel,3,FALSE))*Normtal_slagtevægt*Finansieringsandel_30_kg -> 450.4242784 | E58: Kr./gris
A59: Ja
A60: Ja | C60: Kg regulering | D60: Fra kg | E60: Til kg | F60: Kr/.kg | G60: Startpris | H60: Slutpris
A61: Ja | D61: 0 | E61: 7 | F61: =F62+Smågrisepriser!B$20 -> 14.27677865 | G61: =G62-E61*F61 -> 163.4015927 | H61: =G61+(E61-D61)*F61 -> 263.3390432
A62: Ja | D62: =E61 -> 7 | E62: 9 | F62: =VLOOKUP(D$20,Nulpunktstabel,7,FALSE)*((D58-D57)/(VLOOKUP(D20,Nulpunktstabel,5,FALSE)-VLOOKUP(D20,Nulpunktstabel,4,FALSE))) -> 11.27677865 | G62: =D57 -> 263.3390432 | H62: 285.8926005
A63: Ja | D63: 9 | E63: 12 | F63: =VLOOKUP(D$20,Nulpunktstabel,8,FALSE)*((D58-D57)/(VLOOKUP(D20,Nulpunktstabel,5,FALSE)-VLOOKUP(D20,Nulpunktstabel,4,FALSE))) -> 11.95239182 | G63: =H62 -> 285.8926005 | H63: 321.749776
A64: Ja | D64: 12 | E64: 25 | F64: =VLOOKUP(D$20,Nulpunktstabel,9,FALSE)*((D58-D57)/(VLOOKUP(D20,Nulpunktstabel,5,FALSE)-VLOOKUP(D20,Nulpunktstabel,4,FALSE))) -> 7.322454506 | G64: =H63 -> 321.749776 | H64: 416.9416845
A65: Ja | D65: 25 | E65: 30 | F65: =VLOOKUP(D$20,Nulpunktstabel,10,FALSE)*((D58-D57)/(VLOOKUP(D20,Nulpunktstabel,5,FALSE)-VLOOKUP(D20,Nulpunktstabel,4,FALSE))) -> 6.696518775 | G65: =H64 -> 416.9416845 | H65: 450.4242784
A66: Ja | D66: 30 | E66: 40 | F66: =VLOOKUP(D$20,Nulpunktstabel,11,FALSE)*((D58-D57)/(VLOOKUP(D20,Nulpunktstabel,5,FALSE)-VLOOKUP(D20,Nulpunktstabel,4,FALSE))) -> 6.607099384 | G66: =H65 -> 450.4242784 | H66: 516.4952722
A67: Ja | D67: 40 | E67: 130 | F67: =F66 -> 6.607099384 | G67: =H66 -> 516.4952722 | H67: 1111.134217
A68: Ja | D68: 130 | E68: 1000 | F68: =F67 -> 6.607099384
A69: Ja
A70: Ja
A71: =IF($D$9="Ja","Ja","Nej") -> Ja | C71: Rentabilitetsberegning søer
A72: =IF($D$9="Ja","Ja","Nej") -> Ja | C72: Antal årssøer | D72: =1000*1 -> 1000 | F72: Investeringsbeløb pr. årsso
A73: Ja | C73: Produktions oplysninger
A74: Ja | C74: Fravænningsvægt, kg | D74: 6 | F74: Stalde, bygninger, miljøteknologi og tilskud
A75: Ja | C75: Spildfoderdage/kuld | D75: 12.3 | F75: Investeringsbeløb, kr. årsso | I75: 24150
A76: Ja | C76: Soens laktationsperiode, dage/kuld | D76: 31 | F76: Bygningsandel i % investeringsbeløb | I76: 0.68
A77: Ja | C77: Kuld/årsso | D77: =365/(D75+D76+117) -> 2.276980661 | F77: Levetid bygninger, år | I77: 26
A78: Ja | C78: Fravænnede grise/kuld | D78: 17 | F78: Levetid inventar, år | I78: 13
A79: Ja | C79: Fravænnede grise/årsso | D79: =ROUND(D77*D78,1) -> 38.7 | F79: Miljøinvestering, kr./årsso | I79: 1300
A80: Ja | C80: Slagtevægt søer, kg | D80: 185 | F80: Forventet levetid miljøteknologi, år | I80: 13
A81: Ja | C81: 1 lægspct. efter indkøring, % af farekuld | D81: 0.2435 | F81: Miljøtilladelse i kr./årsso | I81: =IF(D72>0,41+55,0) -> 96
A82: Ja | C82: Årlig soudskiftning, pct. | D82: =D77*D81 -> 0.554444791 | F82: Levetid miljøansøgning, år | I82: 26
A83: Ja | C83: Udnyttelselsprocent polte, % | D83: 0.95 | F83: Fornyet miljøansøgning i kr./årsso | I83: =I81 -> 96
A84: Ja | C84: Sodødelighed, i % af årssøer | D84: 0.128 | F84: Tilskud pr. årsso, kr./årsso | I84: 0
A85: Ja | C85: Kernestyring eller indkøbte polte | D85: Nej
A86: Ja | C86: Prisreduktion polte 22 uger ved egen avl | D86: 400 | F86: Sum startinvestering
A87: Ja | C87: Indkøringstab % af fuld produktion | D87: 0.5 | F87: Investering bygninger | I87: =D72*I75*I76 -> 16422000
A88: Ja | F88: Investering inventar | I88: =D72*I75*(1-I76) -> 7728000
A89: Ja | C89: WACC overført pa. | D89: =D30 -> 0.0484 | F89: Renteomkostning byggeri | I89: =(I87*0.33+I88*0.25)*D31 -> 355800.984
A90: Ja | F90: Miljøteknologi | I90: =I79*D72 -> 1300000
A91: Ja | C91: Vælg afrapportering enhed tabeller | D91: Kr./fravænnet | F91: Miljøansøgning | I91: =I81*D72 -> 96000
A92: Ja | F92: Indkøringstab | I92: =D87*(21/52)*I146*D72 -> 1071569.643
A93: Ja | C93: Investerings nøgletal | F93: Tilskud | I93: =I84*D72*-1 -> 0
A94: Ja | C94: Projektets afkastningsgrad (AG = Intern rente) | D94: =IF(D72>0,XIRR(I217:I277,K217:K277,5%),"") -> 0.04977823198 | F94: Lange aktiver i alt | I94: =SUM(I87:I93) -> 26973370.63
A95: Ja | C95: Økonomisk værdi tilføjet (EVA= AG-WACC), % | D95: =IF(D72>0,D94-D89,"") -> 0.001378231978 | F95: Anskaffelsessum besætning | I95: =(J23-IF(D85="Ja",D86,0))*D72 -> 2077500
A96: Ja | C96: Tilbagebetalingstid, år | D96: =IF(D72>0,IF(MAX(J217:J277)>0,VLOOKUP(0,B217:C277,2,FALSE)+IF(VLOOKUP(0,B217:C277,2,FALSE)<I77,0.5),"Aldrig"),"") -> 26 | F96: Gns. værditilvækst besætning | I96: =(-1*(G133+G134+G145+G155)*D78/2)*D72 -> 1930693.58
A97: Ja | C97: Sikkerhedsmargin noteringsændring, kr./kg | D97: =IF(D72>0,I172*-1,"") -> 0.04641548819 | F97: Korte aktiver i alt | I97: =SUM(I95:I96) -> 4008193.58
A98: Ja | C98: Projektets nulpunktsnotering. kr./kg | D98: =IF(D72>0,D21-D97,"") -> 11.75358451 | F98: Bunden Investering | I98: =I94+I97 -> 30981564.21
A99: Ja | C99: Projektets kapitalværdi i 1000 kr. | D99: =IF(D72>0,XNPV(D89,I217:I277,K217:K277)/1000,"") -> 435.4355395
A100: Ja | F100: Beløb ved investeringens ophør
A101: Ja | C101: Nulpunkts priser | D101: =D91 -> Kr./fravænnet | F101: Afviklingstab søer | I101: =I92*-1*(50%/D87) -> -1071569.643
A102: Ja | C102: =C173 -> Salgspris fravænnede | D102: =I173 -> 9608.015592 | F102: Sobesætning elimineringstab | I102: =(D72*(J23-IF(D85="Ja",D86,0))-D26*D72*D80)*-1 -> -314450
A103: Ja | C103: DB pr. enhed | D103: =I174 -> 5257.039636 | F103: Besætningsværdi ved eliminering | I103: =I95+I96 -> 4008193.58
A104: Ja | C104: Resultat pr. enhed | D104: =I176 -> -61.07480119 | F104: I alt | I104: =SUM(I101:I103) -> 2622173.937
A105: Ja
A106: Ja
A107: Ja
A108: Ja
A109: Ja
A110: Ja
A111: Ja
A112: Ja
A113: Ja
A114: Ja
A115: Ja
A116: Ja
A117: Ja
A118: Ja
A119: Ja
A120: Ja
A121: Ja
A122: Ja
A123: Ja
A124: Ja
A125: Ja
A126: Ja
A127: Ja
A128: Ja | C128: Søer rentabilitetskalkule | D128: Enhed input | E128: Enheder | F128: Enheds-værdi kr./enhed | G128: Kr./frav. | H128: Beløb pr år i kr. | I128: Kr./årsso
A129: Ja | C129: Salg fravænnede grise beregnet inkl. kg regulering | D129: pr. årsso | E129: =ROUND(D77*D78,1) -> 38.7 | F129: =VLOOKUP(D74,$D$61:$H$68,5,TRUE)-(VLOOKUP(D74,$D$61:$F$68,2,TRUE)-D74)*(VLOOKUP(D74,$D$61:$F$68,3,TRUE)) -> 249.0622646 | G129: =F129 -> 249.0622646 | H129: =$E$129*$D$72*G129 -> 9638709.638 | I129: =H129/IF(D$72>0,D$72,1) -> 9638.709638
A130: Ja | C130: Tillæg/fradrag i forhold til beregnet not. ved salg | D130: pr. årsso | E130: =E129 -> 38.7 | F130: 20 | G130: =F130 -> 20 | H130: 774000 | I130: =H130/IF(D$72>0,D$72,1) -> 774
A131: Ja | C131: Salg af slagtesøer | D131: pr. årsso | E131: =(D82-D84) -> 0.426444791 | F131: =D80*D26 -> 1763.05 | G131: =F131*E131/E$129 -> 19.42748033 | H131: 751843.4888 | I131: 751.8434888
A132: Ja | C132: Salg af slagtepolte | D132: pr. årsso | E132: =D82*(1-D83) -> 0.02772223955 | F132: =D25*83 -> 1037.5 | G132: =F132*E132/E$129 -> 0.7431995745 | H132: 28761.82353 | I132: 28.76182353
A133: Ja | C133: Sopolte udgift (Indkøbt/kostpris) | D133: pr. årsso | E133: =D82/D83 -> 0.5836260958 | F133: =J23-IF(D85="Ja",D86,0) -> 2077.5 | G133: =-1*F133*E133/E$129 -> -31.33031561 | H133: -1212483.214 | I133: -1212.483214
A134: Ja | C134: Diverse faste afgifter pr. årsso | D134: kr./årsso | E134: 1 | F134: =J22+SUM(E131:E132)*J20 -> 75.49542107 | G134: =-1*F134/E$129 -> -1.950786074 | H134: -75495.42107 | I134: -75.49542107
A135: Ja | C135: Bruttoudbytte pr. enhed | G135: =SUM(G129:G134) -> 255.9518428 | H135: =SUM(H129:H134) -> 9905336.315 | I135: 9905.336315
A136: =IF($D$9="Ja","Ja","Nej") -> Ja | C136: Sofoder | D136: FEso/årsso | E136: 1536 | F136: =D20+0.08 -> 2.08 | G136: =-1*E136*F136/$E$129 -> -82.55503876 | H136: =$E$129*$D$72*G136 -> -3194880 | I136: =H136/IF(D$72>0,D$72,1) -> -3194.88
A137: Ja | C137: Foderudgift pattegrise | D137: kr./fravænnet | E137: 1 | F137: 7 | G137: =-1*(E137*F137) -> -7 | H137: -270900 | I137: -270.9
A138: Ja | C138: Smågrisefoder | D138: FEsv/årsso | E138: 0 | F138: 0 | G138: =-1*E138*F138/$E$129 -> 0 | H138: 0 | I138: 0
A139: Ja | C139: Slagtegrisefoder | D139: FEsv/årsso | E139: 0 | F139: 0 | G139: 0 | H139: 0 | I139: 0
A140: Ja | C140: Grovfoder | D140: FEsv/årsso | E140: 0 | F140: 0 | G140: 0 | H140: 0 | I140: 0
A141: Ja | C141: KS udgifter + afgift | D141: Doser/årsso | E141: =D77*2/0.9 -> 5.059957025 | F141: =18 -> 18 | G141: -2.353468384 | H141: -91079.22645 | I141: -91.07922645
A142: Ja | C142: Rådgivning | D142: pr. årsso | E142: 1 | F142: 0 | G142: =-1*E142*F142/$E$129 -> 0 | H142: 0 | I142: =H142/IF(D$72>0,D$72,1) -> 0
A143: Ja | C143: Medicin & vacciner | D143: pr. årsso | E143: 1 | F143: =19*35.6 -> 676.4 | G143: -17.47803618 | H143: -676400 | I143: -676.4
A144: Ja | C144: Diverse stykomkostninger | D144: pr. årsso | E144: 1 | F144: =35.6*10.26 -> 365.256 | G144: -9.438139535 | H144: -365256 | I144: -365.256
A145: Ja | C145: Stykomkostninger i alt | G145: =SUM(G136:G144) -> -118.8246829 | H145: -4598515.226 | I145: -4598.515226
A146: Ja | C146: DB pr. enhed | G146: =G135+G145 -> 137.1271599 | H146: 5306821.089 | I146: 5306.821089
A147: Ja | C147: Arbejde | D147: timer pr. årsso | E147: 9.2 | F147: 225 | G147: =-1*E147*F147/$E$129 -> -53.48837209 | H147: -2070000 | I147: -2070
A148: Ja | C148: Energi | D148: kWh/årsso | E148: 320 | F148: 0.8 | G148: -6.61498708 | H148: =$E$129*$D$72*G148 -> -256000 | I148: -256
A149: Ja | C149: Forsikring | D149: kr./årsso | E149: 1 | F149: 71 | G149: -1.834625323 | H149: -71000 | I149: -71
A150: Ja | C150: Driftsomkostning miljøteknologi | D150: kr./årsso | E150: 1 | F150: =56+26 -> 82 | G150: -2.118863049 | H150: -82000 | I150: -82
A151: ja | C151: Netto klimavirkemidler og klimaafgift (beregnes) | D151: kr./årsso | E151: 1 | F151: =K37 -> 25.34843593 | G151: =-1*E151*F151/$E$129 -> -0.6549983444 | H151: =$E$129*$D$72*G151 -> -25348.43593 | I151: =H151/IF(D$72>0,D$72,1) -> -25.34843593
A152: Ja | C152: Vedligehold | D152: kr./årsso | E152: 1 | F152: =F157*J24+F158*J25 -> 253.092 | G152: -6.539844961 | H152: -253092 | I152: -253.092
A153: Ja | C153: Gyllens nettoværdi pr. ton (negativ hvis indtægt) | D153: ton/årsso | E153: 5.25 | F153: =(-(E136+E138+E139+E140)*0.1/E153) -> -29.25714286 | G153: 3.968992248 | H153: 153600 | I153: 153.6
A154: Ja | C154: Diverse kapacitetsomkostninger | D154: kr./årsso | E154: 1 | F154: 300 | G154: =-1*E154*F154/$E$129 -> -7.751937984 | H154: -300000 | I154: -300
A155: Ja | C155: Kontante kapacitetsomkostninger/enhed | D155: Kr./årsso | E155: 1 | G155: =SUM(G147:G154) -> -75.03463659 | H155: =$E$129*$D$72*G155 -> -2903840.436 | I155: -2903.840436
A156: Ja | C156: EBITDA | G156: =G146+G155 -> 62.09252333 | H156: =H146+H155 -> 2402980.653 | I156: 2402.980653
A157: Ja | C157: Afskrivninger bygninger | D157: % årligt/stiplads | E157: =1/I$77 -> 0.03846153846 | F157: =I75*I76 -> 16422 | G157: =-1*E157*F157/E$129 -> -16.32081097 | H157: =$E$129*$D$72*G157 -> -631615.3846 | I157: -631.6153846
A158: Ja | C158: Afskrivninger inventar | D158: % årligt/stiplads | E158: =CEILING(I77/I78,1)/I77 -> 0.07692307692 | F158: =I75*(1-I76) -> 7728 | G158: =-1*E158*F158/E$129 -> -15.36076327 | H158: =$E$129*$D$72*G158 -> -594461.5385 | I158: -594.4615385
A159: Ja | C159: Afskrivninger miljøteknologi | D159: % årligt/stiplads | E159: =CEILING(I77/I80,1)/I77 -> 0.07692307692 | F159: =I79 -> 1300 | G159: =-1*E159*F159/E$129 -> -2.583979328 | H159: =$E$129*$D$72*G159 -> -100000 | I159: -100
A160: Ja | C160: Afskrivninger diverse | D160: % årligt/stiplads | E160: =E157 -> 0.03846153846 | F160: =(I89+I91+I92+I101*-1+I102*-1+SUM(I209:I213))/IF(D72>0,D72,1) -> 2909.39027 | G160: =-1*E160*F160/E$129 -> -2.891463198 | H160: =$E$129*$D$72*G160 -> -111899.6258 | I160: -111.8996258
A161: Ja | C161: Korrektion afskrivninger pga. tilskud | D161: % årligt/stiplads | E161: =E157 -> 0.03846153846 | F161: =I84 -> 0 | G161: =E161*F161/E$129 -> 0 | H161: =$E$129*$D$72*G161 -> 0 | I161: 0
A162: Ja | C162: Afskrivninger i alt | G162: =SUM(G157:G161) -> -37.15701677 | H162: =SUM(H157:H161) -> -1437976.549 | I162: =SUM(I157:I161) -> -1437.976549
A163: Ja | C163: Resultat af primær drift | G163: =G156+G162 -> 24.93550657 | H163: =H156+H162 -> 965004.1041 | I163: =I156+I162 -> 965.0041041
A164: Ja | C164: ="Renteomkostning nulpunkt" -> Renteomkostning nulpunkt | G164: =I164/D79 -> -23.68249621 | H164: =L187 -> -916512.6034 | I164: -916.5126034
A165: Ja | C165: Resultat pr. enhed, nulpunktsrenter | G165: =G163+G164 -> 1.253010354 | H165: =H163+H164 -> 48491.5007 | I165: =I163+I164 -> 48.4915007
A166: Ja | C166: Rentekorrektion i forhold til Cash Flow | G166: =H166/IF(D72>0,D72*D79,1) -> -0.3698804601 | H166: =IF(D72>0,L188-L187,0) -> -14314.3738 | I166: =H166/IF(D72>0,D72,1) -> -14.3143738
A167: Ja | C167: Resultat/enhed efter rentekorrektion | G167: =G165+G166 -> 0.883129894 | H167: =H165+H166 -> 34177.1269 | I167: =I165+I166 -> 34.1771269
A168: Ja | C168: Projektets afkastningsgrad | G168: =D94 -> 0.04977823198 | H168: =D94 -> 0.04977823198 | I168: =D94 -> 0.04977823198
A169: Ja
A170: =IF($D$9="Ja","Ja","Nej") -> Ja
A171: Ja | D171: ="Følsomhed notering i forhold til: "&D$21&" kr./kg" -> Følsomhed notering i forhold til: 11,8 kr./kg | I171: Nulpunkts prognose
A172: Ja | C172: Noteringsændring kr./kg | D172: =2*$D$28*-1 -> -1 | E172: =1*$D$28*-1 -> -0.5 | F172: 0 | G172: =1*$D$28 -> 0.5 | H172: =2*$D$28 -> 1 | I172: =I197 -> -0.04641548819
A173: Ja | C173: Salgspris fravænnede | D173: =D198 -> 8566.530115 | E173: =E198 -> 9112.619877 | F173: 9658.709638 | G173: 10204.7994 | H173: 10750.88916 | I173: =I198 -> 9608.015592
A174: Ja | C174: =C146 -> DB pr. enhed | D174: 4226.124667 | E174: =E199 -> 4766.867339 | F174: 5306.821089 | G174: 5847.563761 | H174: 6387.517511 | I174: =I199 -> 5257.039636
A175: ja | C175: =C165 -> Resultat pr. enhed, nulpunktsrenter | D175: =D201 -> -1000.083333 | E175: =E201 -> -475.3493751 | F175: 48.4915007 | G175: 573.2254581 | H175: 1097.066334 | I175: =I201 -> 0.2511045017
A176: Ja | C176: =C167 -> Resultat/enhed efter rentekorrektion | D176: =D202 -> -2034.470759 | E176: =E202 -> -999.3514766 | F176: 34.1771269 | G176: 920.4775187 | H176: 1604.638032 | I176: =I202 -> -61.07480119
A177: Nej
A178: Nej
A179: Nej | C179: Antal investeringer | D179: Gns. levetid år | E179: Maks levetid år | F179: Inv. Sum | G179: Årlig ydelse maks levetid | H179: Års rest tid sidste | I179: Årlig ydelse sidste | J179: År med maks. | K179: Gns årlig ydelse | L179: Rest til renter per år
A180: Nej | C180: =D$180/D180 -> 1 | D180: =1/E157 -> 26 | E180: =D180 -> 26 | F180: =H157*-1*D180 -> 16422000 | G180: =2*PMT(D$89/2,E180*2,F180,0,0) -> -1116950.952 | H180: =IF(C180>1,E$180-(C180-1)*E180,0) -> 0 | I180: =IF(H180>0,2*PMT(D$89/2,2*H180,F180,0,0)) -> FALSE | J180: =D180 -> 26 | K180: =(G180*J180+H180*I180)/E$180 -> -1116950.952 | L180: =K180-H157 -> -485335.5674
A181: Nej | C181: =D$180/D181 -> 2 | D181: =1/E158 -> 13 | E181: =I78 -> 13 | F181: =H158*-1*D181 -> 7728000 | G181: =2*PMT(D$89/2,E181*2,F181,0,0) -> -807898.128 | H181: =IF(C181>1,E$180-(C181-1)*E181,0) -> 13 | I181: =IF(H181>0,2*PMT(D$89/2,2*H181,F181,0,0)) -> -807898.128 | J181: =(C181-IF(C181>1,1,0))*E181 -> 13 | K181: =(G181*J181+H181*I181)/E$180 -> -807898.128 | L181: =K181-H158 -> -213436.5896
A182: Nej | C182: =D$180/D182 -> 2 | D182: =1/E159 -> 13 | E182: =I80 -> 13 | F182: =H159*-1*D182 -> 1300000 | G182: =2*PMT(D$89/2,E182*2,F182,0,0) -> -135904.1882 | H182: =IF(C182>1,E$180-(C182-1)*E182,0) -> 13 | I182: =IF(H182>0,2*PMT(D$89/2,2*H182,F182,0,0)) -> -135904.1882 | J182: =(C182-IF(C182>1,1,0))*E182 -> 13 | K182: =(G182*J182+H182*I182)/E$180 -> -135904.1882 | L182: =K182-H159 -> -35904.18821
A183: Nej | C183: =D$180/D183 -> 1 | D183: =1/E160 -> 26 | E183: =D183 -> 26 | F183: =H160*-1*D183 -> 2909390.27 | G183: =2*PMT(D$89/2,E183*2,F183,0,0) -> -197883.7067 | H183: =IF(C183>1,E$180-(C183-1)*E183,0) -> 0 | I183: =IF(H183>0,2*PMT(D$89/2,2*H183,F183,0,0)) -> FALSE | J183: =(C183-IF(C183>1,1,0))*E183 -> 26 | K183: =(G183*J183+H183*I183)/E$180 -> -197883.7067 | L183: =K183-H160 -> -85984.08095
A184: Nej | C184: =D$180/D184 -> 1 | D184: =1/E161 -> 26 | E184: =D184 -> 26 | F184: =H161*-1*D184 -> 0 | G184: =2*PMT(D$89/2,E184*2,F184,0,0) -> 0 | H184: =IF(C184>1,E$180-(C184-1)*E184,0) -> 0 | I184: =IF(H184>0,2*PMT(D$89/2,2*H184,F184,0,0)) -> FALSE | J184: =(C184-IF(C184>1,1,0))*E184 -> 26 | K184: =(G184*J184+H184*I184)/E$180 -> 0 | L184: =K184-H161 -> 0
A185: Nej | F185: =SUM(F180:F184) -> 28359390.27 | L185: =SUM(L180:L183) -> -820660.4261
A186: Nej | C186: Besætningsværdi rente (ingen afskrivninger) | F186: =SUM(I95:I96) -> 4008193.58 | L186: =-F186*(POWER(10,LOG(D$89+1)/2)-1) -> -95852.17732
A187: Nej | C187: I alt estimeret renter ved nulpunkt | L187: =SUM(L185:L186) -> -916512.6034
A188: Nej | C188: Renter via Cash flow metoden | L188: =((SUM(F217:F277)*-1)/I77) -> -930826.9773
A189: Nej | C189: Renteforskel i % | L189: =IF(D72>0,L187/L188-1,0) -> -0.01537812521
A190: Nej
A191: Nej
A192: Nej
A193: Nej | C193: Følsomhedstabel søer
A194: Nej | C194: Valgt enhed
A195: Nej | C195: Salg fravænnede grise beregnet inkl. kg regulering
A196: Nej | D196: Noteringsændring i kr./kg
A197: Nej | C197: =IF(D72>0,VLOOKUP(C195,$C$128:$I$168,IF(D91=G128,5,7),FALSE)+IF(C195=C129,IF(D91="Kr./årsso",I130,F130),0),"") -> 9658.709638 | D197: =D172 -> -1 | E197: =E172 -> -0.5 | F197: =F172 -> 0 | G197: =G172 -> 0.5 | H197: =H172 -> 1 | I197: =IF(D72>0,FORECAST(0,D197:H197,D201:H201),0) -> -0.04641548819
A198: Nej | C198: =C129 -> Salg fravænnede grise beregnet inkl. kg regulering | D198: 8566.530115 | E198: 9112.619877 | F198: 9658.709638 | G198: 10204.7994 | H198: 10750.88916 | I198: 9608.015592
A199: Nej | C199: =C174 -> DB pr. enhed | D199: 4226.124667 | E199: 4766.867339 | F199: 5306.821089 | G199: 5847.563761 | H199: 6387.517511 | I199: 5257.039636
A200: Nej | C200: Resultat af primær drift | D200: -99.43519876 | E200: 433.2083641 | F200: 965.0041041 | G200: 1497.647667 | H200: 2029.443407 | I200: 916.005574
A201: Nej | C201: =C165 -> Resultat pr. enhed, nulpunktsrenter | D201: -1000.083333 | E201: -475.3493751 | F201: 48.4915007 | G201: 573.2254581 | H201: 1097.066334 | I201: 0.2511045017
A202: Nej | C202: =C167 -> Resultat/enhed efter rentekorrektion | D202: -2034.470759 | E202: -999.3514766 | F202: 34.1771269 | G202: 920.4775187 | H202: 1604.638032 | I202: -61.07480119
... 625 more rows

Sheet Klima
E1: Note der findes ikke endelige beregninger, og klimaftryk beregninger ændres konstant men her er nogle Input baseret på DCE 2023 eller SEGES klimavirkekatalog 2024
E3: Tabel. Kg COe per årsso eller per produceret smågrise eller slagtegris 2023. Kilde DCE og egne beregninger. Alle beregninger er før klimavirkehjælpemidler eller BAT-teknologi på stalden.
F4: Årsso | G4: % andel | H4: Smågrise per enhed | I4: % andel | J4: Slagtegris per enhed | K4: % andel
E5: Fordøjelse CH4 | F5: 80.1 | G5: 0.118 | H5: 2.15 | I5: 0.15 | J5: 11.3 | K5: 0.192
E6: Husdyrgødning CH4 | F6: 534.2 | G6: 0.788 | H6: 11.31 | I6: 0.787 | J6: 41.7 | K6: 0.703
E7: Husdyrgødning N2O | F7: 63.7 | G7: 0.094 | H7: 0.91 | I7: 0.063 | J7: 6.2 | K7: 0.105
E8: I alt kg CO2 e per enhed | F8: 678.03 | H8: 14.36 | J8: 59.23
E9: Krav til reduktion af gødningsmetan | G9: 0.508 | I9: 0.508 | K9: 0.569
E10: Tons gylle per enhed ab lager | F10: 6.33 | H10: 0.128 | J10: 0.544
E14: Tabel: Klimavirkemidler stald og lager fra SEGES Klimavirkemidler rapport 2024. Metan tab Stald og lager udgår i runde tal kun ca. 80 % af grisen CO2 udledning.
E15: Valg | F15: Sum variable omkostninger kr./ton | G15: Sum Kapital-omkostning kr./ton | H15: Reduceret metan-emission stald og lager | I15: Reduceret % af total | J15: Omkostning per ton CO2 ækv. | K15: Omkostning per årsso | L15: Omkostning per smågris | M15: Omkostninger per slagtegris
E16: Hyppig udslusning | F16: 0 | G16: 0 | H16: 0.17 | I16: 0.136 | J16: 0 | K16: =SUM($F16:$G16)*$F$10 -> 0 | L16: =SUM($F16:$G16)*$H$10 -> 0 | M16: =SUM(F16:G16)*$J$10 -> 0
E17: Linespil | F17: 2.84 | G17: 4.72 | H17: 0.307 | I17: 0.245 | J17: 281 | K17: =SUM($F17:$G17)*$F$10 -> 47.8548 | L17: =SUM($F17:$G17)*$H$10 -> 0.96768 | M17: 4.11264
E18: Gyllekøling | F18: 1.78 | G18: 3.22 | H18: 0.059 | I18: 0.047 | J18: 971 | K18: 31.65 | L18: 0.64 | M18: 2.72
E19: Gyllekøling + Hyppig udslusning | F19: 1.78 | G19: 3.22 | H19: 0.219 | I19: 0.175 | J19: 260 | K19: 31.65 | L19: 0.64 | M19: 2.72
E20: Gylleforsuring | F20: 9.77 | G20: 12.42 | H20: 0.7 | I20: 0.56 | J20: 361 | K20: 140.4627 | L20: 2.84032 | M20: 12.07136
E21: Biogas | F21: 0.05 | G21: 3.13 | H21: 0.401 | I21: 0.321 | J21: 90 | K21: 20.1294 | L21: 0.40704 | M21: 1.72992
E22: Lav dosis forsuring i lager | F22: 3.94 | G22: 0 | H22: 0.304 | I22: 0.243 | J22: 147 | K22: 24.9402 | L22: 0.50432 | M22: 2.14336
E23: Fakkelafbrænding fra lager | F23: 1 | G23: 9.73 | H23: 0.3 | I23: 0.24 | J23: 407 | K23: 67.9209 | L23: 1.37344 | M23: 5.83712
E24: Kompost biofilter fra lager | F24: 2.21 | G24: 12.53 | H24: 0.318 | I24: 0.255 | J24: 526 | K24: 93.3042 | L24: 1.88672 | M24: 8.01856
E25: Hyppig udslusning + Biogas | F25: 0.05 | G25: 3.13 | H25: 0.667 | I25: 0.534 | J25: 54 | K25: 20.1294 | L25: 0.40704 | M25: 1.72992
E26: Hyppig udslusning + Lav dosis forsuring i lager | F26: 3.94 | G26: 0 | H26: 0.537 | I26: 0.429 | J26: 84 | K26: 24.9402 | L26: 0.50432 | M26: 2.14336
E27: Hyppig udslusning + Fakkelafbrænding fra lager | F27: 1 | G27: 9.73 | H27: 0.531 | I27: 0.425 | J27: 230 | K27: 67.9209 | L27: 1.37344 | M27: 5.83712
E28: Hyppig udslusning + Kompost biofilter fra lager | F28: 2.21 | G28: 12.53 | H28: 0.554 | I28: 0.443 | J28: 303 | K28: 93.3042 | L28: 1.88672 | M28: 8.01856
E29: Gyllekøling + Biogas | F29: 1.84 | G29: 6.35 | H29: 0.5 | I29: 0.4 | J29: 186 | K29: 51.8427 | L29: 1.04832 | M29: 4.45536
E30: Gyllekøling + Lav dosis forsuring i lager | F30: 5.73 | G30: 3.22 | H30: 0.384 | I30: 0.307 | J30: 265 | K30: 56.6535 | L30: 1.1456 | M30: 4.8688
E31: Gyllekøling + Fakkelafbrænding fra lager | F31: 2.78 | G31: 12.95 | H31: 0.379 | I31: 0.303 | J31: 473 | K31: 99.5709 | L31: 2.01344 | M31: 8.55712
E32: Gyllekøling + Kompost biofilter fra lager | F32: 3.99 | G32: 15.74 | H32: 0.399 | I32: 0.319 | J32: 563 | K32: 124.8909 | L32: 2.52544 | M32: 10.73312
E33: Linespil + Biogas | F33: 2.9 | G33: 7.85 | H33: 0.88 | I33: 0.704 | J33: 139 | K33: 68.0475 | L33: 1.376 | M33: 5.848
E34: Linespil + Lav dosis forsuring i lager | F34: 6.79 | G34: 4.72 | H34: 0.723 | I34: 0.578 | J34: 181 | K34: 72.8583 | L34: 1.47328 | M34: 6.26144
E35: Linespil + Fakkelafbrænding fra lager | F35: 3.84 | G35: 14.45 | H35: 0.716 | I35: 0.573 | J35: 290 | K35: 115.7757 | L35: 2.34112 | M35: 9.94976
E36: Linespil + Kompost biofilter fra lager | F36: 5.05 | G36: 17.25 | H36: 0.742 | I36: 0.594 | J36: 342 | K36: 141.159 | L36: 2.8544 | M36: 12.1312
E37: Hyppig udslusning + Gyllekøling + Biogas | F37: 1.84 | G37: 6.35 | H37: 0.74 | I37: 0.592 | J37: 126 | K37: 51.8427 | L37: 1.04832 | M37: 4.45536
E38: Hyppig udslusning + Gyllekøling + Lav dosis forsuring i lager | F38: 5.73 | G38: 3.22 | H38: 0.72 | I38: 0.576 | J38: 141 | K38: 56.6535 | L38: 1.1456 | M38: 4.8688
E39: Hyppig udslusning + Gyllekøling + Fakkelafbrænding fra lager | F39: 2.78 | G39: 12.95 | H39: 0.59 | I39: 0.472 | J39: 303 | K39: 99.5709 | L39: 2.01344 | M39: 8.55712
E40: Hyppig udslusning + Gyllekøling + Kompost biofilter fra lager | F40: 3.99 | G40: 15.74 | H40: 0.61 | I40: 0.488 | J40: 368 | K40: 124.8909 | L40: 2.52544 | M40: 10.73312

Sheet Ark2 (hidden)
E10: År fra | F10: År til | G10: Kr./kg i slagtekrop tillæg
E11: 0 | F11: 1 | G11: 0.8
E12: 1 | F12: 2 | G12: 0.7
E13: 2 | F13: 3 | G13: 0.6
E14: 3 | F14: 4 | G14: 0.5
E15: 4 | F15: 5 | G15: 0.4
E16: 5 | F16: 6 | G16: 0
E17: 6 | F17: 25 | G17: 0

Sheet Ark1 (hidden)
G7: inv | H7: år | I7: Halvårligt | J7: Årlig rente | K7: halvrålig | M7: Ydelse
G8: 1000000 | H8: 26 | I8: =H8*2 -> 52 | J8: 0.07 | K8: =POWER(10,LOG(J8+1)/2)-1 -> 0.03440804328 | M8: =PMT(J8,H8,G8,0) -> -84561.02789 | N8: =2*PMT(K8,I8,G8,0) -> -83130.84306
G9: 1000000 | H9: 26 | I9: =H9*2 -> 52 | J9: 0.07 | K9: =J9*0.5 -> 0.035 | M9: =PMT(J9,H9,G9,0) -> -84561.02789 | N9: =2*PMT(K9,I9,G9,0) -> -84048.57077 | P9: halv rente
N10: =N9/N8 -> 1.011039557
G12: 1000000 | H12: 1000000
F13: terminer | G13: 26 | H13: 52
F14: Renter | G14: =7% -> 0.07 | H14: =G14/2 -> 0.035
F15: Ydelse | G15: =PMT(G14,G13,G12) -> -84561.02789 | H15: =PMT(H14,H13,H12) -> -42024.28538
F16: I alt | G16: =G15*G13 -> -2198586.725 | H16: =H15*H13 -> -2185262.84 | I16: =G16/H16 -> 1.006097154

Sheet Tabel (hidden)
H5: Søer | I5: Smågrise | J5: Slagtesvin traditionel | K5: Slagtegrise rundbuehal
G6: Investeringsbeløb kr./per stiplads | H6: 24150 | I6: 2310 | J6: 4570 | K6: 3570 | M6: 3570
G7: Afkastningsgrad | H7: 0.05313289464 | I7: 0.07281110585 | J7: 0.04765619934 | K7: 0.06903323233 | M7: 0.05766964853
G8: EVA (Økonomisk værdi tilføjet) | H8: 0.004732894635 | I8: 0.02441110585 | J8: -0.0007438006639 | K8: 0.02063323233 | M8: 0.009269648528
G9: Tilbagebetalingstid i år | H9: 25 | I9: 18.5 | J9: Aldrig | K9: 19 | M9: 23
G10: Nulpunktsnotering kr./kg | H10: 11.73673611 | I10: 11.29230407 | J10: 11.73320714 | K10: 11.30213044
G11: Egenkapitalens gennemsnitlige forrentning | H11: 0.03950409728 | I11: 0.03894683069 | J11: 0.0174696475 | K11: 0.04370325621
G12: Egenkapitalens maksimale forrentning via EVA, % pa | H12: 0.1073289464 | I12: 0.3041110585 | J12: 0.05256199336 | K12: 0.2663323233
G13: Reel egenkapital forrentning, % pa | H13: 0.06873544809 | I13: 0.1000510346 | J13: 0.02629555629 | K13: 0.1031245023

Sheet Investerings kalkule u. makro (hidden)
C2: Rentabilitetsanalyser svin ved investeringer i stalde | F2: For: | G2: SEGES
C4: Navigationslink række visninger | D4: Prisprognose på mellem langsigt | F4: So kalkule | G4: Smågrise kalkule | H4: Slagtesvin kalkule | J4: Samlet R-analyse
A5: Vis
A6: Nej
A7: Ja | C7: Styring af rækker som vises via egne valg. Vælg celle A4 og vælg ja og tryk ok
A8: Ja | C8: Vis langsigtet prognose | D8: Ja | F8: Foretag dine valg, og vælg celle A4 og sig Ok til vis Ja
A9: Ja | C9: Vis søer | D9: Ja
A10: Ja | C10: Vis smågrise | D10: Ja
A11: Ja | C11: Vis slagtesvin | D11: Ja | F11: Gule celler er input celle. Indsæt ikke egne rækker etc. I dette regneark
A12: Ja | C12: Vis cashflow søer | D12: Ja
A13: Ja | C13: Vis cashflow smågrise | D13: Ja
A14: Ja | C14: Vis cashflow slagtesvin | D14: Ja | F14: Der kan laves et kopi af arket som kan gives nyt navn, hvis man gerne vil have flere scenarier i samme regnearksfil
A15: Ja | C15: Konsolideret ved mere end 1 driftsgren | D15: Ja
A16: Ja | C16: Konsolideret cashflow | D16: Nej
A17: Ja | C17: Rentabilitetsanalyser svin ved investeringer i stalde
A18: =IF($D$8="Ja","Ja","Nej") -> Ja | C18: Prisprognose dansk griseproduktion mellemlang sigt | E18: Anbefalet prisniveau på mellemlang sigt er 2 kr. FEsv/slagtegrisefoder og 11,5 kr./kg i notering
A19: Ja | C19: Sidste længere prisprognose | D19: 2022-11-28 | F19: Normpristal
A20: Ja | C20: Indkøbt slagtegrisefoderpris prognose landsplan | D20: 2 | E20: kr./FEsv | F20: Produktionsafgift søer og slagtepolte | J20: 10.9
A21: Ja | C21: Mellemlamgsigtet notering svin ved denne foderpris | D21: 11.5 | E21: kr./kg | F21: Produktionsafgift slagtesvin | J21: 5.5
A22: Ja | C22: Diverse standard korrektioner, kr../kg | D22: 1.36 | F22: Genafgift søer | J22: 70
A23: Ja | C23: Gns. dansk afregningspris | D23: =D21+D22 -> 12.86 | E23: kr./kg | F23: Anslået købspris LY sopolte ved givet niveau | J23: =(D25+0.12)*125+500 -> 2122.5
A24: Ja | C24: Følsomhed notering svin (bruges af program) | D24: 0 | F24: Vedligehold bygninger af investeringssum | J24: 0.006
A25: Ja | C25: Dansk afregningspris inkl. følsomhedsfaktor | D25: =D21+D22+D24 -> 12.86 | F25: Vedligehold inventar af investeringssum | J25: 0.02
A26: Ja | C26: Afregningspris kr./kg slagtesøer | D26: =ROUND((D21+D24)*Smågrisepriser!B12,2)+(D22-Smågrisepriser!B10) -> 9.97
A27: Ja | C27: Følsomhedsanalyse (+/- 2 intervaller)
A28: Ja | C28: ="+/- gns. dansk notering kr./kg" -> +/- gns. dansk notering kr./kg | D28: 0.5 | E28: kr/kg
A29: Ja | C29: Renteniveau indlagt (wacc)
A30: Ja | C30: Kalkulationsrente i beregningerne (wacc) | D30: 0.0574 | E30: pa
A31: Ja | C31: Byggerente | D31: 0.0574 | E31: pa
A32: Ja | C32: Investeringens startdato | D32: 2023-07-01
A33: =IF($D$8="Ja","Ja","Nej") -> Ja
A34: Ja | C34: Tabel for smågrisenotering ved angivet notering og langsigtet foderprognose. Over 40 kg findes ingen beregnet notering
A35: Ja | C35: Indlagt notering + følsomhedsfaktor | D35: =D21+D24 -> 11.5
A36: Ja | C36: 7 kg smågrisepris | D36: =VLOOKUP(D20,Nulpunktstabel,4,FALSE)+(D35-VLOOKUP(D20,Nulpunktstabel,3,FALSE))*Normtal_slagtevægt*Finansieringssandel_7_kg -> 254.5979552 | E36: Kr./gris
A37: Ja | C37: 30 kg smågrisepris | D37: =VLOOKUP(D20,Nulpunktstabel,5,FALSE)+(D35-VLOOKUP(D20,Nulpunktstabel,3,FALSE))*Normtal_slagtevægt*Finansieringsandel_30_kg -> 437.1278224 | E37: Kr./gris
A38: Ja
A39: Ja | C39: Kg regulering | D39: Fra kg | E39: Til kg | F39: Kr/.kg | G39: Startpris | H39: Slutpris
A40: Ja | D40: 0 | E40: 7 | F40: =F41+Smågrisepriser!B$20 -> 14.00219858 | G40: =G41-E40*F40 -> 156.5825651 | H40: =G40+(E40-D40)*F40 -> 254.5979552
A41: Ja | D41: =E40 -> 7 | E41: 9 | F41: =VLOOKUP(D$20,Nulpunktstabel,7,FALSE)*((D37-D36)/(VLOOKUP(D20,Nulpunktstabel,5,FALSE)-VLOOKUP(D20,Nulpunktstabel,4,FALSE))) -> 11.00219858 | G41: =D36 -> 254.5979552 | H41: 276.6023524
A42: Ja | D42: 9 | E42: 12 | F42: =VLOOKUP(D$20,Nulpunktstabel,8,FALSE)*((D37-D36)/(VLOOKUP(D20,Nulpunktstabel,5,FALSE)-VLOOKUP(D20,Nulpunktstabel,4,FALSE))) -> 11.66136114 | G42: =H41 -> 276.6023524 | H42: 311.5864358
A43: Ja | D43: 12 | E43: 25 | F43: =VLOOKUP(D$20,Nulpunktstabel,9,FALSE)*((D37-D36)/(VLOOKUP(D20,Nulpunktstabel,5,FALSE)-VLOOKUP(D20,Nulpunktstabel,4,FALSE))) -> 7.144158902 | G43: =H42 -> 311.5864358 | H43: 404.4605015
A44: Ja | D44: 25 | E44: 30 | F44: =VLOOKUP(D$20,Nulpunktstabel,10,FALSE)*((D37-D36)/(VLOOKUP(D20,Nulpunktstabel,5,FALSE)-VLOOKUP(D20,Nulpunktstabel,4,FALSE))) -> 6.533464179 | G44: =H43 -> 404.4605015 | H44: 437.1278224
A45: Ja | D45: 30 | E45: 40 | F45: =VLOOKUP(D$20,Nulpunktstabel,11,FALSE)*((D37-D36)/(VLOOKUP(D20,Nulpunktstabel,5,FALSE)-VLOOKUP(D20,Nulpunktstabel,4,FALSE))) -> 6.446222076 | G45: =H44 -> 437.1278224 | H45: 501.5900432
A46: Ja | D46: 40 | E46: 130 | F46: =F45 -> 6.446222076 | G46: =H45 -> 501.5900432 | H46: 1081.75003
A47: Ja | D47: 130 | E47: 1000 | F47: =F46 -> 6.446222076
A48: Ja
A49: Ja
A50: =IF($D$9="Ja","Ja","Nej") -> Ja | C50: Rentabilitetsberegning søer
A51: =IF($D$9="Ja","Ja","Nej") -> Ja | C51: Antal årssøer | D51: =0*1200 -> 0 | F51: Investeringsbeløb pr. årsso
A52: Ja | C52: Produktions oplysninger
A53: Ja | C53: Fravænningsvægt, kg | D53: 6.5 | F53: Stalde, bygninger, miljøteknologi og tilskud
A54: Ja | C54: Spildfoderdage/kuld | D54: 13 | F54: Investeringsbeløb, kr.årsso | I54: 25000
A55: Ja | C55: Soens laktationsperiode, dage/kuld | D55: 32 | F55: Bygningsandel i % investeringsbeløb | I55: 0.68
A56: Ja | C56: Kuld/årsso | D56: =365/(D54+D55+117) -> 2.25308642 | F56: Levetid bygninger, år | I56: 25
A57: Ja | C57: Fravænnede grise/kuld | D57: 16.1 | F57: Levetid inventar, år | I57: 15
A58: Ja | C58: Fravænnnede grise/årsso | D58: =ROUND(D56*D57,1) -> 36.3 | F58: Miljøinvestering, kr./årsso | I58: 1100
A59: Ja | C59: Slagtevægt søer, kg | D59: 185 | F59: Forventet levetid miljøteknologi, år | I59: 12.5
A60: Ja | C60: 1 lægspct. efter indkøring, % af farekuld | D60: 0.235 | F60: Miljøtilladelse i kr./årsso | I60: =IF(D51>0,41+55,0) -> 0
A61: Ja | C61: Årlig soudskiftning, pct. | D61: =D56*D60 -> 0.5294753086 | F61: Levetid miljøansøgning, år | I61: 9
A62: Ja | C62: Udnyttelsesprocent polte, % | D62: 0.95 | F62: Fornyet miljøansøgning i kr./årsso | I62: =I60*0.5 -> 0
A63: Ja | C63: Sodødelighed, i % af årssøer | D63: 0.12 | F63: Tilskud pr. årsso, kr./årsso | I63: 0
A64: Ja | C64: Kernestyring eller indkøbte polte | D64: Nej
A65: Ja | C65: Prisreduktion polte 22 uger ved egen avl | D65: 400 | F65: Sum startinvestering
A66: Ja | C66: Indkøringstab % af fuld produktion | D66: 0.5 | F66: Investering bygninger | I66: =D51*I54*I55 -> 0
A67: Ja | F67: Investering inventar | I67: =D51*I54*(1-I55) -> 0
A68: Ja | C68: WACC overført pa. | D68: =D30 -> 0.0574 | F68: Renteomkostning byggeri | I68: =(I66*0.33+I67*0.25)*D31 -> 0
A69: Ja | F69: Miljøteknologi | I69: =I58*D51 -> 0
A70: Ja | C70: Vælg afrapportering enhed tabeller | D70: Kr./frav. | F70: Miljøansøgning | I70: =I60*D51 -> 0
A71: Ja | F71: Indkøringstab | I71: =D66*(21/52)*I125*D51 -> 0
A72: Ja | C72: Investerings nøgletal | F72: Tilskud | I72: =I63*D51*-1 -> 0
A73: Ja | C73: Projektets afkastningsgrad (AG = Intern rente) | D73: =IF(D51>0,XIRR(I179:I239,K179:K239,5%),"") ->  | F73: Lange aktiver i alt | I73: =SUM(I66:I72) -> 0
A74: Ja | C74: Økonomisk værdi tilføjet (EVA= AG-WACC), % | D74: =IF(D51>0,D73-D68,"") ->  | F74: Anskaffelsessum besætning | I74: =(J23-IF(D64="Ja",D65,0))*D51 -> 0
A75: Ja | C75: Tilbagebetalingstid, år | D75: =IF(D51>0,IF(MAX(J179:J239)>0,VLOOKUP(0,B179:C239,2,FALSE)+IF(VLOOKUP(0,B179:C239,2,FALSE)<I56,0.5),"Aldrig"),"") ->  | F75: Gns. værditilvækst besætning | I75: =(-1*(G112+G113+G124+G133)*D57/2)*D51 -> 0
A76: Ja | C76: Sikkerhedsmargin noteringsændring, kr./kg | D76: =IF(D51>0,I150*-1,"") ->  | F76: Korte aktiver i alt | I76: =SUM(I74:I75) -> 0
A77: Ja | C77: Projektets nulpunktsnotering. kr./kg | D77: =IF(D51>0,D21-D76,"") ->  | F77: Bunden Investering | I77: =I73+I76 -> 0
A78: Ja | C78: Projektets kapitalværdi i 1000 kr. | D78: =IF(D51>0,XNPV(D68,I179:I239,K179:K239)/1000,"") -> 
A79: Ja | F79: Beløb ved investeringens ophør
A80: Ja | C80: Nulpunkts priser | D80: =D70 -> Kr./frav. | F80: Afviklingstab søer | I80: =I71*-1*(50%/D66) -> 0
A81: Ja | C81: =C151 -> Salgspris fravænnede | D81: =I151 ->  | F81: Sobesætningselimeringstab | I81: =(D51*(J23-IF(D64="Ja",D65,0))-D26*D51*D59)*-1 -> 0
A82: Ja | C82: DB pr. enhed | D82: =I152 ->  | F82: Besætningsværdi ved eliminering | I82: =I74+I75 -> 0
A83: Ja | C83: Resultat pr. enhed | D83: =I153 ->  | F83: I alt | I83: =SUM(I80:I82) -> 0
A84: Ja
A85: Ja
A86: Ja
A87: Ja
A88: Ja
A89: Ja
A90: Ja
A91: Ja
A92: Ja
A93: Ja
A94: Ja
A95: Ja
A96: Ja
A97: Ja
A98: Ja
A99: Ja
A100: Ja
A101: Ja
A102: Ja
A103: Ja
A104: Ja
A105: Ja
A106: Ja
A107: Ja | C107: Søer rentabilitetskalkule | D107: Enhed input | E107: Enheder | F107: Enheds-værdi kr./enhed | G107: Kr./frav. | H107: Beløb pr år i kr. | I107: Kr./årsso
A108: Ja | C108: Salg fravænnede grise beregnet inkl. kg regulering | D108: pr. årsso | E108: =ROUND(D56*D57,1) -> 36.3 | F108: =VLOOKUP(D53,$D$40:$H$47,5,TRUE)-(VLOOKUP(D53,$D$40:$F$47,2,TRUE)-D53)*(VLOOKUP(D53,$D$40:$F$47,3,TRUE)) -> 247.5968559 | G108: =F108 -> 247.5968559 | H108: =$E$108*$D$51*G108 -> 0 | I108: =H108/IF(D$51>0,D$51,1) -> 0
A109: Ja | C109: Tillæg/fradrag i forhold til beregnet not. ved salg | D109: pr. årsso | E109: =E108 -> 36.3 | F109: 10 | G109: =F109 -> 10 | H109: 0 | I109: =H109/IF(D$51>0,D$51,1) -> 0
A110: Ja | C110: Salg af slagtesøer | D110: pr. årsso | E110: =(D61-D63) -> 0.4094753086 | F110: =D59*D26 -> 1844.45 | G110: =F110*E110/E$108 -> 20.80597061 | H110: 0 | I110: 0
A111: Ja | C111: Salg af slagtepolte | D111: pr. årsso | E111: =D61*(1-D62) -> 0.02647376543 | F111: =D25*83 -> 1067.38 | G111: =F111*E111/E$108 -> 0.7784453925 | H111: 0 | I111: 0
A112: Ja | C112: Sopolte udgift (Indkøbt/kostpris) | D112: pr. årsso | E112: =D61/D62 -> 0.5573424301 | F112: =J23-IF(D64="Ja",D65,0) -> 2122.5 | G112: =-1*F112*E112/E$108 -> -32.58841069 | H112: 0 | I112: 0
A113: Ja | C113: Diverse faste afgifter pr. årsso | D113: kr./årsso | E113: 1 | F113: =J22+SUM(E110:E111)*J20 -> 74.75184491 | G113: =-1*F113/E$108 -> -2.059279474 | H113: 0 | I113: 0
A114: Ja | C114: Bruttoudbytte pr. enhed | G114: =SUM(G108:G113) -> 244.5335817 | H114: =SUM(H108:H113) -> 0 | I114: 0
A115: =IF($D$9="Ja","Ja","Nej") -> Ja | C115: Sofoder | D115: Fesv/årsso | E115: 1536 | F115: =D20+0.05 -> 2.05 | G115: =-1*E115*F115/$E$108 -> -86.74380165 | H115: =$E$108*$D$51*G115 -> 0 | I115: 0
A116: Ja | C116: Foderudgift pattegrise | D116: kr./fravænnet | E116: 1 | F116: 5 | G116: =-1*(E116*F116) -> -5 | H116: 0 | I116: 0
A117: Ja | C117: Smågrisefoder | D117: Fesv/årsso | E117: 0 | F117: 0 | G117: =-1*E117*F117/$E$108 -> 0 | H117: 0 | I117: 0
A118: Ja | C118: Slagtesvinfoder | D118: Fesv/årsso | E118: 0 | F118: 0 | G118: 0 | H118: 0 | I118: 0
A119: Ja | C119: Grovfoder | D119: Fesv/årsso | E119: 0 | F119: 0 | G119: 0 | H119: 0 | I119: 0
A120: Ja | C120: KS udgifter | D120: Doser/årsso | E120: =D56*2/0.9 -> 5.006858711 | F120: 18 | G120: -2.482739856 | H120: 0 | I120: 0
A121: Ja | C121: Rådgivning | D121: pr. årsso | E121: 1 | F121: 0 | G121: =-1*E121*F121/$E$108 -> 0 | H121: 0 | I121: =H121/IF(D$51>0,D$51,1) -> 0
A122: Ja | C122: Medicin & vacciner | D122: pr. årsso | E122: 1 | F122: 353 | G122: -9.724517906 | H122: 0 | I122: 0
A123: Ja | C123: Diverse stykomkostninger | D123: pr. årsso | E123: 1 | F123: 222 | G123: -6.115702479 | H123: 0 | I123: 0
A124: Ja | C124: Stykomkostninger i alt | G124: =SUM(G115:G123) -> -110.0667619 | H124: 0 | I124: 0
A125: Ja | C125: DB pr. enhed | G125: =G114+G124 -> 134.4668199 | H125: 0 | I125: 0
A126: Ja | C126: Arbejde | D126: timer pr. årsso | E126: 9.2 | F126: 192 | G126: =-1*E126*F126/$E$108 -> -48.66115702 | H126: 0 | I126: 0
A127: Ja | C127: Energi | D127: kwh/årsso | E127: 320 | F127: 0.8 | G127: -7.052341598 | H127: 0 | I127: 0
A128: Ja | C128: Forsikring | D128: kr./årsso | E128: 1 | F128: 71 | G128: -1.955922865 | H128: 0 | I128: 0
A129: Ja | C129: Driftsomkostning miljøteknologi | D129: kr./årsso | E129: 1 | F129: =56+26 -> 82 | G129: -2.258953168 | H129: 0 | I129: 0
A130: Ja | C130: Vedligehold | D130: kr./årsso | E130: 1 | F130: =F135*J24+F136*J25 -> 262 | G130: -7.217630854 | H130: 0 | I130: 0
A131: Ja | C131: Gyllens nettoværdi pr. ton (negativ hvis indtægt) | D131: ton/årsso | E131: 5.25 | F131: -20 | G131: 2.892561983 | H131: 0 | I131: 0
A132: Ja | C132: Diverse kapacitetsomkostninger | D132: kr./årsso | E132: 1 | F132: 300 | G132: =-1*E132*F132/$E$108 -> -8.26446281 | H132: 0 | I132: 0
A133: Ja | C133: Kontante kapacitetsomkostninger/enhed | D133: Kr./årsso | E133: 1 | G133: =SUM(G126:G132) -> -72.51790634 | H133: =$E$108*$D$51*G133 -> 0 | I133: 0
A134: Ja | C134: EBID resultat | G134: =G125+G133 -> 61.94891352 | H134: =H125+H133 -> 0 | I134: 0
A135: Ja | C135: Afskrivninger bygninger | D135: % årligt/stiplads | E135: =1/I$56 -> 0.04 | F135: =I54*I55 -> 17000 | G135: =-1*E135*F135/E$108 -> -18.73278237 | H135: =$E$108*$D$51*G135 -> 0 | I135: 0
A136: Ja | C136: Afskrivninger inventar | D136: % årligt/stiplads | E136: =CEILING(I56/I57,1)/I56 -> 0.08 | F136: =I54*(1-I55) -> 8000 | G136: =-1*E136*F136/E$108 -> -17.63085399 | H136: =$E$108*$D$51*G136 -> 0 | I136: 0
A137: Ja | C137: Afskrivninger miljøteknologi | D137: % årligt/stiplads | E137: =CEILING(I56/I59,1)/I56 -> 0.08 | F137: =I58 -> 1100 | G137: =-1*E137*F137/E$108 -> -2.424242424 | H137: =$E$108*$D$51*G137 -> 0 | I137: 0
A138: Ja | C138: Afskrivninger diverse | D138: % årligt/stiplads | E138: =E135 -> 0.04 | F138: =(I68+I70+I71+I80*-1+I81*-1+SUM(I171:I175))/IF(D51>0,D51,1) -> 0 | G138: =-1*E138*F138/E$108 -> 0 | H138: =$E$108*$D$51*G138 -> 0 | I138: 0
A139: Ja | C139: Korrektion afskrivninger pga. tilskud | D139: % årligt/stiplads | E139: =E135 -> 0.04 | F139: =I63 -> 0 | G139: =E139*F139/E$108 -> 0 | H139: =$E$108*$D$51*G139 -> 0 | I139: 0
A140: Ja | C140: Afskrivninger i alt | G140: =SUM(G135:G139) -> -38.78787879 | H140: =SUM(H135:H139) -> 0 | I140: =SUM(I135:I139) -> 0
A141: Ja | C141: Resultat af primær drift | G141: =G134+G140 -> 23.16103473 | H141: =H134+H140 -> 0 | I141: =I134+I140 -> 0
A142: Ja | C142: ="Renteomkostning" -> Renteomkostning | G142: =I142/D58 -> 0 | H142: =(SUM(F179:F239)*-1)/I56 -> 0 | I142: 0
A143: Ja | C143: Ordinært resultat pr. enhed | G143: =G141+G142 -> 23.16103473 | H143: =H141+H142 -> 0 | I143: =I141+I142 -> 0
A144: Ja | C144: Ekstra ordinære renteomkostninger | G144: =H144/IF(D51>0,D51*D58,1) -> 0 | H144: =IF(H239<0,H239*D68*5*0.5/I56,0) -> 0 | I144: =H144/IF(D51>0,D51,1) -> 0
A145: Ja | C145: Resultat pr. enhed | G145: =G143+G144 -> 23.16103473 | H145: =H143+H144 -> 0 | I145: =I143+I144 -> 0
A146: Ja | C146: Projektets afkastningsgrad | G146: =D73 ->  | H146: =D73 ->  | I146: =D73 -> 
A147: Ja
A148: =IF($D$9="Ja","Ja","Nej") -> Ja | F148: Nulpunktregulator kr./kg | I148: -0.2258791062
A149: Ja | D149: ="Følsomhed notering i forhold til: "&D$21&" kr./kg" -> Følsomhed notering i forhold til: 11,5 kr./kg | I149: Nulpunkts prognose
A150: Ja | C150: Noteringsændring kr./kg | D150: =2*$D$28*-1 -> -1 | E150: =1*$D$28*-1 -> -0.5 | F150: 0 | G150: =1*$D$28 -> 0.5 | H150: =2*$D$28 -> 1 | I150: =IF(D51>0,I148,0) -> 0
A151: Ja | C151: Salgspris fravænnede | D151: =D160 -> 
A152: Ja | C152: =C125 -> DB pr. enhed
A153: Ja | C153: Resultat pr. enhed | D153: =D164 -> 
A154: Nej
A155: Nej | C155: Følsomhedstabel søer
A156: Nej | C156: Valgt enhed
A157: Nej | C157: Salg fravænnede grise beregnet
A158: Nej | D158: Noteringsændring i kr./kg
A159: Nej | C159: =IF(D51>0,VLOOKUP(C157,$C$107:$I$146,IF(D70=G107,5,7),FALSE)+IF(C157=C108,IF(D70="Kr./årsso",I109,F109),0),"") ->  | D159: =D150 -> -1 | E159: -0.5 | F159: 0 | G159: 0.5 | H159: 1 | I159: =I148 -> -0.2258791062
A160: Nej | C160: =C108 -> Salg fravænnede grise beregnet inkl. kg regulering
A161: Nej | C161: =C152 -> DB pr. enhed
A162: Nej | C162: Resultat af primær drift
A163: Nej | C163: =C143 -> Ordinært resultat pr. enhed
A164: Nej | C164: =C145 -> Resultat pr. enhed
A165: Nej
A166: Nej
A167: Nej | C167: Søer reinvesteringstabel | D167: Halvårlig rente | E167: =POWER(10,LOG(D68+1)/2)-1 -> 0.02829956725
A168: Nej | C168: Forventede reinvesteringer i projektet levetid | D168: Inventar fornyelse år efter start | E168: Inventar investering år efter start | F168: Miljøteknologi fornyelse år efter start | G168: Miljøteknoloi investering år efter start | H168: Miljø tilladelse år efter start | I168: Miljø tilladelse, omkostning ved fornyelse
A169: Nej | C169: Levetid angivet | D169: =I57 -> 15 | F169: =I59 -> 12.5 | H169: =I61 -> 9
A170: Nej | C170: Fornyet investering antal gange | D170: =CEILING($I$56/I57,1)-1 -> 1 | F170: =CEILING($I$56/I59,1)-1 -> 1 | H170: =CEILING($I$56/I61,1)-1 -> 2
A171: Nej | C171: 1 | D171: =IF($C171<=D$170,D$169*$C171,"") -> 15 | E171: =IF(ISNUMBER(D171),(1-$I$55)*$I$54*$D$51,0)*IF(D$51>0,1,0) -> 0 | F171: =IF($C171<=F$170,F$169*$C171,"") -> 12.5 | G171: =IF(ISNUMBER(F171),$I$58*$D$51,0)*IF(D$51>0,1,0) -> 0 | H171: =IF($C171<=H$170,H$169*$C171,"") -> 9 | I171: =IF(ISNUMBER(H171),$I$62*$D$51,0)*IF(D$51>0,1,0) -> 0
A172: Nej | C172: 2 | D172: =IF($C172<=D$170,D$169*$C172,"") ->  | E172: =IF(ISNUMBER(D172),(1-$I$55)*$I$54*$D$51,0)*IF(D$51>0,1,0) -> 0 | F172: =IF($C172<=F$170,F$169*$C172,"") ->  | G172: =IF(ISNUMBER(F172),$I$58*$D$51,0)*IF(D$51>0,1,0) -> 0 | H172: =IF($C172<=H$170,H$169*$C172,"") -> 18 | I172: =IF(ISNUMBER(H172),$I$62*$D$51,0)*IF(D$51>0,1,0) -> 0
A173: Nej | C173: 3 | D173: =IF($C173<=D$170,D$169*$C173,"") ->  | E173: =IF(ISNUMBER(D173),(1-$I$55)*$I$54*$D$51,0)*IF(D$51>0,1,0) -> 0 | F173: =IF($C173<=F$170,F$169*$C173,"") ->  | G173: =IF(ISNUMBER(F173),$I$58*$D$51,0)*IF(D$51>0,1,0) -> 0 | H173: =IF($C173<=H$170,H$169*$C173,"") ->  | I173: =IF(ISNUMBER(H173),$I$62*$D$51,0)*IF(D$51>0,1,0) -> 0
A174: Nej | C174: 4 | D174: =IF($C174<=D$170,D$169*$C174,"") ->  | E174: =IF(ISNUMBER(D174),(1-$I$55)*$I$54*$D$51,0)*IF(D$51>0,1,0) -> 0 | F174: =IF($C174<=F$170,F$169*$C174,"") ->  | G174: =IF(ISNUMBER(F174),$I$58*$D$51,0)*IF(D$51>0,1,0) -> 0 | H174: =IF($C174<=H$170,H$169*$C174,"") ->  | I174: =IF(ISNUMBER(H174),$I$62*$D$51,0)*IF(D$51>0,1,0) -> 0
A175: Nej | C175: 5 | D175: =IF($C175<=D$170,D$169*$C175,"") ->  | E175: =IF(ISNUMBER(D175),(1-$I$55)*$I$54*$D$51,0)*IF(D$51>0,1,0) -> 0 | F175: =IF($C175<=F$170,F$169*$C175,"") ->  | G175: =IF(ISNUMBER(F175),$I$58*$D$51,0)*IF(D$51>0,1,0) -> 0 | H175: =IF($C175<=H$170,H$169*$C175,"") ->  | I175: =IF(ISNUMBER(H175),$I$62*$D$51,0)*IF(D$51>0,1,0) -> 0
A176: ja
A177: =IF($D$12="Ja","Ja","Nej") -> Ja | C177: Cashflow søer
A178: =IF($D$12="Ja","Ja","Nej") -> Ja | C178: Terminer i halvår | D178: Investerings-summer | E178: EBID Cashflow | F178: Rente-omkostning | G178: Rest afdrag | H178: Gæld saldo | I178: Cash flow ½ årligt | J178: PB saldo 1000 kr. | K178: Dato
A179: Ja | B179: =IF(J179>=0,0,J179) -> 0 | C179: 0 | D179: =I77*-1 -> 0 | E179: 0 | F179: 0 | G179: 0 | H179: =D179 -> 0 | I179: =D179+E179 -> 0 | J179: =(H179+IF(C179<$I$56,$I$83,0))/1000 -> 0 | K179: =DATE(YEAR(D32),IF(MONTH(D32)<=6,1,7),1) -> 2023-07-01
A180: Ja | B180: =IF(J180>=0,0,J180) -> 0 | C180: =IF(AND(C179<>FALSE,C179+0.5<=$I$56),C179+0.5) -> 0.5 | D180: =(IF(ISNA(VLOOKUP(C180,$D$171:$E$175,2,FALSE)),0,VLOOKUP(C180,$D$171:$E$175,2,FALSE))+IF(ISNA(VLOOKUP(C180,$F$171:$G$175,2,FALSE)),0,VLOOKUP(C180,$F$171:$G$175,2,FALSE))+IF(ISNA(VLOOKUP(C180,$H$171:$I$175,2,FALSE)),0,VLOOKUP(C180,$H$171:$I$175,2,FALSE)))*-1+IF(C180=$I$56,$I$83,0) -> 0 | E180: =IF(C180<=$I$56,H$134*0.5,0) -> 0 | F180: =IF(C180<=$I$56,IF(H179<0,H179*$E$167*-1,0),0) -> 0 | G180: =IF(H179>=0,0,IF(E180-F180>H179*-1,H179*-1,E180-F180)) -> 0 | H180: =H179+D180+G180 -> 0 | I180: =D180+E180 -> 0 | J180: 0 | K180: =IF(MONTH(K179)+6>12,DATE(YEAR(K179)+1,MONTH(K179)+6-12,1),DATE(YEAR(K179),MONTH(K179)+6,1)) -> 2024-01-01
A181: Ja | B181: 0 | C181: 1 | D181: 0 | E181: 0 | F181: 0 | G181: 0 | H181: 0 | I181: =D181+E181 -> 0 | J181: 0 | K181: =IF(MONTH(K180)+6>12,DATE(YEAR(K180)+1,MONTH(K180)+6-12,1),DATE(YEAR(K180),MONTH(K180)+6,1)) -> 2024-07-01
A182: Ja | B182: 0 | C182: 1.5 | D182: 0 | E182: 0 | F182: 0 | G182: 0 | H182: 0 | I182: 0 | J182: 0 | K182: 2025-01-01
A183: Ja | B183: 0 | C183: 2 | D183: 0 | E183: 0 | F183: 0 | G183: 0 | H183: 0 | I183: 0 | J183: 0 | K183: 2025-07-01
A184: Ja | B184: 0 | C184: 2.5 | D184: 0 | E184: 0 | F184: 0 | G184: 0 | H184: 0 | I184: 0 | J184: 0 | K184: 2026-01-01
A185: Ja | B185: 0 | C185: 3 | D185: 0 | E185: 0 | F185: 0 | G185: 0 | H185: 0 | I185: 0 | J185: 0 | K185: 2026-07-01
A186: Ja | B186: 0 | C186: 3.5 | D186: 0 | E186: 0 | F186: 0 | G186: 0 | H186: 0 | I186: 0 | J186: 0 | K186: 2027-01-01
A187: Ja | B187: 0 | C187: 4 | D187: 0 | E187: 0 | F187: 0 | G187: 0 | H187: 0 | I187: 0 | J187: 0 | K187: 2027-07-01
A188: Ja | B188: 0 | C188: 4.5 | D188: 0 | E188: 0 | F188: 0 | G188: 0 | H188: 0 | I188: 0 | J188: 0 | K188: 2028-01-01
A189: Ja | B189: 0 | C189: 5 | D189: 0 | E189: 0 | F189: 0 | G189: 0 | H189: 0 | I189: 0 | J189: 0 | K189: 2028-07-01
A190: Ja | B190: 0 | C190: 5.5 | D190: 0 | E190: 0 | F190: 0 | G190: 0 | H190: 0 | I190: 0 | J190: 0 | K190: 2029-01-01
A191: Ja | B191: 0 | C191: 6 | D191: 0 | E191: 0 | F191: 0 | G191: 0 | H191: 0 | I191: 0 | J191: 0 | K191: 2029-07-01
A192: Ja | B192: 0 | C192: 6.5 | D192: 0 | E192: 0 | F192: 0 | G192: 0 | H192: 0 | I192: 0 | J192: 0 | K192: 2030-01-01
A193: Ja | B193: 0 | C193: 7 | D193: 0 | E193: 0 | F193: 0 | G193: 0 | H193: 0 | I193: 0 | J193: 0 | K193: 2030-07-01
A194: Ja | B194: 0 | C194: 7.5 | D194: 0 | E194: 0 | F194: 0 | G194: 0 | H194: 0 | I194: 0 | J194: 0 | K194: 2031-01-01
A195: Ja | B195: 0 | C195: 8 | D195: 0 | E195: 0 | F195: 0 | G195: 0 | H195: 0 | I195: 0 | J195: 0 | K195: 2031-07-01
A196: Ja | B196: 0 | C196: 8.5 | D196: 0 | E196: 0 | F196: 0 | G196: 0 | H196: 0 | I196: 0 | J196: 0 | K196: 2032-01-01
A197: Ja | B197: 0 | C197: 9 | D197: 0 | E197: 0 | F197: 0 | G197: 0 | H197: 0 | I197: 0 | J197: 0 | K197: 2032-07-01
A198: Ja | B198: 0 | C198: 9.5 | D198: 0 | E198: 0 | F198: 0 | G198: 0 | H198: 0 | I198: 0 | J198: 0 | K198: 2033-01-01
A199: Ja | B199: 0 | C199: 10 | D199: 0 | E199: 0 | F199: 0 | G199: 0 | H199: 0 | I199: 0 | J199: 0 | K199: 2033-07-01
A200: Ja | B200: 0 | C200: 10.5 | D200: 0 | E200: 0 | F200: 0 | G200: 0 | H200: 0 | I200: 0 | J200: 0 | K200: 2034-01-01
A201: Ja | B201: 0 | C201: 11 | D201: 0 | E201: 0 | F201: 0 | G201: 0 | H201: 0 | I201: 0 | J201: 0 | K201: 2034-07-01
A202: Ja | B202: 0 | C202: 11.5 | D202: 0 | E202: 0 | F202: 0 | G202: 0 | H202: 0 | I202: 0 | J202: 0 | K202: 2035-01-01
... 511 more rows

Sheet Smågrisepriser (hidden)
A1: Forbeholdt SEGES
A2: Fra notering til afregningspris beregnet notering
A3: Korrektion, kr/kg | B3: 0.03
A4: Efterbetaling NPV, kr/kg | B4: 0.67
A5: Korrektion til DC notering | B5: =SUM(B3:B4) -> 0.7
A6: Normtal slagtevægt | B6: 90.6
A7: Forventet langtidsprognose | B7: ='Investerings kalkule m. makro'!D23 -> 12.5 | C7: Følsomheds noteringsændring
A8: Finansieringssandel 7 kg | B8: 0.3216 | C8: =B8*B6 -> 29.13696 | D8: ="+/- kr/gris ved 7 kg" -> +/- kr/gris ved 7 kg
A9: Finansieringsandel 30 kg | B9: 0.4892 | C9: =B6*B9 -> 44.32152 | D9: ="+/- kr/gris ved 30 kg" -> +/- kr/gris ved 30 kg
A10: Mindre efterbetaling søer | B10: 0.02 | C10: kr/kg
C11: Prognose | D11: -1 | E11: 1
A12: Sonotering er på langt sigt antaget at være 75 % af DC notering | B12: 0.75 | C12: ='Investerings kalkule m. makro'!D21*0.75 -> 8.85 | D12: =('Investerings kalkule m. makro'!D21-1)*0.75 -> 8.1 | E12: =('Investerings kalkule m. makro'!D21+1)*0.75 -> 9.6
A13: Opdateret: | B13: =Vejledning!D11 -> 2025-12-11 | G13: Indlagt
A14: Marginalpriser andre foderblandinger i forhold til | B14: Kr./fesv | C14: Prisforskel i forhold til slagtesvinefoder | E14: Kontrol | G14: -0.3 | H14: 0.3
A15: Pris per slagtesvinefoder, kr/fesv | B15: 2 | C15: 0 | E15: =B15+C$15 -> 2 | G15: =$E15+G$14 -> 1.7 | H15: =$E15+H$14 -> 2.3
A16: Sofoder | B16: =B$15+C16 -> 2.08 | C16: 0.08 | E16: =B16+C$15 -> 2.08 | G16: =$E16+G$14 -> 1.78 | H16: 2.38
A17: Smågrisefoder 1 | B17: =B$15+C17 -> 3.93 | C17: 1.93 | E17: 3.93 | G17: 3.63 | H17: 4.23
A18: Smågrise foder 2 | B18: =B$15+C18 -> 2.13 | C18: 0.13 | E18: 2.13 | G18: 1.83 | H18: 2.43
A19: Smågrisefoder vægtet | B19: =B$15+C19 -> 2.44 | C19: 0.44 | E19: 2.44 | G19: 2.14 | H19: 2.74
A20: Kg regulering per kg under 7 kg | B20: 3
B21: Kr. kg slagtekrop | D21: Smågrisepriser nulpunkt | F21: Kg reguleringer nulpunkt
A22: Slagtesvinefoderpris, kr/fesv | B22: Afregningspris nulpunkt | C22: DC not. nulpunkt | D22: 7 kg | E22: 30 kg | F22: 0-7 kg | G22: 7-9 kg | H22: 9-12 kg | I22: 12-25 kg | J22: 25-30 kg | K22: 30-40 kg
A23: =A24-0.3 -> 1.7 | B23: 11.49 | C23: =B23-$B$5 -> 10.79 | D23: 251.37 | E23: 426.72 | F23: =G23+B$20 -> 13.05 | G23: 10.05 | H23: 11.62 | I23: 6.93 | J23: 6.06 | K23: 5.91 | M23: ok | N23: =D23+G23*2+3*H23+13*I23+5*J23 -> 426.72 | O23: =N23-E23 -> 0
A24: =B15 -> 2 | B24: 12.58 | C24: =B24-$B$5 -> 11.88 | D24: 265.67 | E24: 453.97 | F24: =G24+B$20 -> 14.35 | G24: 11.35 | H24: 12.03 | I24: 7.37 | J24: 6.74 | K24: 6.65 | M24: ok | N24: =D24+G24*2+3*H24+13*I24+5*J24 -> 453.97 | O24: =N24-E24 -> 0
A25: =A24+0.3 -> 2.3 | B25: 13.62 | C25: =B25-$B$5 -> 12.92 | D25: 280.03 | E25: 481.32 | F25: 15.63 | G25: 12.63 | H25: 12.44 | I25: 7.82 | J25: 7.41 | K25: 7.39 | M25: ok | N25: =D25+G25*2+3*H25+13*I25+5*J25 -> 481.32 | O25: =N25-E25 -> 0
A28: Beregnet smågrisenotering, priser nulpunktsnotering
A29: 7 kg smågrisepris | B29: =VLOOKUP(B15,A61:D231,4,FALSE) -> 265.67 | C29: Kr./gris
A30: 30 kg smågrisepris | B30: =VLOOKUP(B15,A61:E231,5,FALSE) -> 453.97 | C30: Kr./gris
A31: Nulpunkts notering gns | B31: =VLOOKUP(B15,A60:C231,3,FALSE) -> 11.88 | E31: Beregnet notering
A32: Kg regulering | B32: Fra kg | C32: Til kg | D32: Kr/kg | E32: Startpris | F32: Slutpris | H32: Kolonnenr
B33: 0 | C33: 7 | D33: =D34+B20 -> 14.35 | E33: =B29-7*D33 -> 165.22 | F33: =E34 -> 265.67
B34: =C33 -> 7 | C34: =B35 -> 9 | D34: =VLOOKUP($B$15,$A$60:$K$231,H34,FALSE) -> 11.35 | E34: =B29 -> 265.67 | F34: =E34+(C34-B34)*D34 -> 288.37 | H34: 7
B35: 9 | C35: 12 | D35: =VLOOKUP($B$15,$A$60:$K$231,H35,FALSE) -> 12.03 | E35: =F33 -> 265.67 | F35: 301.76 | H35: =H34+1 -> 8
B36: 12 | C36: 25 | D36: 7.37 | E36: =F35 -> 301.76 | F36: 397.57 | H36: =H35+1 -> 9
B37: 25 | C37: 30 | D37: 6.74 | E37: =F36 -> 397.57 | F37: 431.27 | H37: 10
B38: 30 | C38: 40 | D38: 6.65 | E38: =F37 -> 431.27 | F38: 497.77 | H38: 11
B39: 40 | C39: 130 | D39: =D38 -> 6.65 | E39: =F38 -> 497.77 | F39: 1096.27 | H39: 12
B40: 130 | C40: 1000 | D40: =D39 -> 6.65
A42: Tabel for smågrisenotering ved angivet notering og langsigtet foderprognose | G42: Kontrol
A43: Indlagt notering+ følsomhed | B43: ='Investerings kalkule m. makro'!D21+'Investerings kalkule m. makro'!D24 -> 11.8 | D43: Niveau | G43: =(B45-B30)-(B43-B31)*Normtal_slagtevægt*Finansieringsandel_30_kg -> 2.398081733e-14
A44: 7 kg smågrisepris | B44: =B29+(B43-B31)*B6*B8 -> 263.3390432 | C44: Kr./gris | D44: =(B44/B29) -> 0.9912261196
A45: 30 kg smågrisepris | B45: =B30+(B43-B31)*B6*B9 -> 450.4242784 | C45: Kr./gris | D45: =(B45/B30) -> 0.9921895244
A46: Ændret niveau regulering | D46: =(B45-B44)/(B30-B29) -> 0.9935487796 | E46: Beregnet notering
A47: Kg regulering | B47: Fra kg | C47: Til kg | D47: Kr/kg | E47: Startpris | F47: Slutpris
B48: =B33 -> 0 | C48: 7 | D48: =D33*$D$46 -> 14.25742499 | E48: =B44-7*D48 -> 163.5370683 | F48: =E49 -> 263.3390432
B49: 7 | C49: 9 | D49: =D34*$D$46 -> 11.27677865 | E49: =B44 -> 263.3390432 | F49: =E49+(C49-B49)*D48 -> 291.8538932
B50: 9 | C50: 12 | D50: 11.95239182 | E50: =F49 -> 291.8538932 | F50: =E50+(C50-B50)*D49 -> 325.6842291
B51: 12 | C51: 25 | D51: 7.322454506 | E51: =F50 -> 325.6842291 | F51: 481.0653228
B52: 25 | C52: 30 | D52: 6.696518775 | E52: =F51 -> 481.0653228 | F52: 517.6775953
B53: 30 | C53: 40 | D53: 6.607099384 | E53: =F52 -> 517.6775953 | F53: 584.642783
B54: 40 | C54: 130 | D54: 6.607099384 | E54: =F53 -> 584.642783 | F54: 1179.281728
B55: 130 | C55: 1000 | D55: 6.607099384
A60: Slagtesvine foder, kr. fesv | B60: Nulpunktsnotering | C60: =C22 -> DC not. nulpunkt | D60: =D22 -> 7 kg | E60: =E22 -> 30 kg | F60: 0-7 | G60: 7-9 kg | H60: 9-12 kg | I60: 12-25 kg | J60: 25-30 kg | K60: 30-40 kg | L60: Match
A61: =0.96+0.46 -> 1.42 | B61: =IF($A61<=$A$24,FORECAST($A61,B$23:B$24,$A$23:$A$24),FORECAST($A61,B$24:B$25,$A$24:$A$25)) -> 10.47266667 | C61: 9.772666667 | D61: 238.0233333 | E61: 401.2866667 | F61: =G61+B$20 -> 11.83666667 | G61: =IF($A61<=$A$24,FORECAST($A61,G$23:G$24,$A$23:$A$24),FORECAST($A61,G$24:G$25,$A$24:$A$25)) -> 8.836666667 | H61: 11.23733333 | I61: 6.519333333 | J61: 5.425333333 | K61: 5.219333333 | L61: 0
A62: =ROUND(A61+0.01,2) -> 1.43 | B62: 10.509 | C62: 9.809 | D62: 238.5 | E62: 402.195 | F62: =G62+B$20 -> 11.88 | G62: 8.88 | H62: 11.251 | I62: 6.534 | J62: 5.448 | K62: 5.244 | L62: 0
A63: =ROUND(A62+0.01,2) -> 1.44 | B63: 10.54533333 | C63: 9.845333333 | D63: 238.9766667 | E63: 403.1033333 | F63: 11.92333333 | G63: 8.923333333 | H63: 11.26466667 | I63: 6.548666667 | J63: 5.470666667 | K63: 5.268666667 | L63: 0
A64: 1.45 | B64: 10.58166667 | C64: 9.881666667 | D64: 239.4533333 | E64: 404.0116667 | F64: 11.96666667 | G64: 8.966666667 | H64: 11.27833333 | I64: 6.563333333 | J64: 5.493333333 | K64: 5.293333333 | L64: 0
A65: 1.46 | B65: 10.618 | C65: 9.918 | D65: 239.93 | E65: 404.92 | F65: 12.01 | G65: 9.01 | H65: 11.292 | I65: 6.578 | J65: 5.516 | K65: 5.318 | L65: 0
A66: 1.47 | B66: 10.65433333 | C66: 9.954333333 | D66: 240.4066667 | E66: 405.8283333 | F66: 12.05333333 | G66: 9.053333333 | H66: 11.30566667 | I66: 6.592666667 | J66: 5.538666667 | K66: 5.342666667 | L66: 0
A67: 1.48 | B67: 10.69066667 | C67: 9.990666667 | D67: 240.8833333 | E67: 406.7366667 | F67: 12.09666667 | G67: 9.096666667 | H67: 11.31933333 | I67: 6.607333333 | J67: 5.561333333 | K67: 5.367333333 | L67: 0
A68: 1.49 | B68: 10.727 | C68: 10.027 | D68: 241.36 | E68: 407.645 | F68: 12.14 | G68: 9.14 | H68: 11.333 | I68: 6.622 | J68: 5.584 | K68: 5.392 | L68: 0
A69: 1.5 | B69: 10.76333333 | C69: 10.06333333 | D69: 241.8366667 | E69: 408.5533333 | F69: 12.18333333 | G69: 9.183333333 | H69: 11.34666667 | I69: 6.636666667 | J69: 5.606666667 | K69: 5.416666667 | L69: 0
A70: 1.51 | B70: 10.79966667 | C70: 10.09966667 | D70: 242.3133333 | E70: 409.4616667 | F70: 12.22666667 | G70: 9.226666667 | H70: 11.36033333 | I70: 6.651333333 | J70: 5.629333333 | K70: 5.441333333 | L70: 0
A71: 1.52 | B71: =IF($A71<=$A$24,FORECAST($A71,B$23:B$24,$A$23:$A$24),FORECAST($A71,B$24:B$25,$A$24:$A$25)) -> 10.836 | C71: 10.136 | D71: 242.79 | E71: 410.37 | F71: 12.27 | G71: =IF($A71<=$A$24,FORECAST($A71,G$23:G$24,$A$23:$A$24),FORECAST($A71,G$24:G$25,$A$24:$A$25)) -> 9.27 | H71: 11.374 | I71: 6.666 | J71: 5.652 | K71: 5.466 | L71: 0
A72: 1.53 | B72: 10.87233333 | C72: 10.17233333 | D72: 243.2666667 | E72: 411.2783333 | F72: 12.31333333 | G72: 9.313333333 | H72: 11.38766667 | I72: 6.680666667 | J72: 5.674666667 | K72: 5.490666667 | L72: 0
A73: 1.54 | B73: 10.90866667 | C73: 10.20866667 | D73: 243.7433333 | E73: 412.1866667 | F73: 12.35666667 | G73: 9.356666667 | H73: 11.40133333 | I73: 6.695333333 | J73: 5.697333333 | K73: 5.515333333 | L73: 0
A74: 1.55 | B74: 10.945 | C74: 10.245 | D74: 244.22 | E74: 413.095 | F74: 12.4 | G74: 9.4 | H74: 11.415 | I74: 6.71 | J74: 5.72 | K74: 5.54 | L74: 0
A75: 1.56 | B75: 10.98133333 | C75: 10.28133333 | D75: 244.6966667 | E75: 414.0033333 | F75: 12.44333333 | G75: 9.443333333 | H75: 11.42866667 | I75: 6.724666667 | J75: 5.742666667 | K75: 5.564666667 | L75: 0
A76: 1.57 | B76: 11.01766667 | C76: 10.31766667 | D76: 245.1733333 | E76: 414.9116667 | F76: 12.48666667 | G76: 9.486666667 | H76: 11.44233333 | I76: 6.739333333 | J76: 5.765333333 | K76: 5.589333333 | L76: 0
A77: 1.58 | B77: 11.054 | C77: 10.354 | D77: 245.65 | E77: 415.82 | F77: 12.53 | G77: 9.53 | H77: 11.456 | I77: 6.754 | J77: 5.788 | K77: 5.614 | L77: 0
A78: 1.59 | B78: 11.09033333 | C78: 10.39033333 | D78: 246.1266667 | E78: 416.7283333 | F78: 12.57333333 | G78: 9.573333333 | H78: 11.46966667 | I78: 6.768666667 | J78: 5.810666667 | K78: 5.638666667 | L78: 0
A79: 1.6 | B79: 11.12666667 | C79: 10.42666667 | D79: 246.6033333 | E79: 417.6366667 | F79: 12.61666667 | G79: 9.616666667 | H79: 11.48333333 | I79: 6.783333333 | J79: 5.833333333 | K79: 5.663333333 | L79: 0
A80: 1.61 | B80: 11.163 | C80: 10.463 | D80: 247.08 | E80: 418.545 | F80: 12.66 | G80: 9.66 | H80: 11.497 | I80: 6.798 | J80: 5.856 | K80: 5.688 | L80: 0
A81: 1.62 | B81: =IF($A81<=$A$24,FORECAST($A81,B$23:B$24,$A$23:$A$24),FORECAST($A81,B$24:B$25,$A$24:$A$25)) -> 11.19933333 | C81: 10.49933333 | D81: 247.5566667 | E81: 419.4533333 | F81: 12.70333333 | G81: =IF($A81<=$A$24,FORECAST($A81,G$23:G$24,$A$23:$A$24),FORECAST($A81,G$24:G$25,$A$24:$A$25)) -> 9.703333333 | H81: 11.51066667 | I81: 6.812666667 | J81: 5.878666667 | K81: 5.712666667 | L81: 0
A82: 1.63 | B82: 11.23566667 | C82: 10.53566667 | D82: 248.0333333 | E82: 420.3616667 | F82: 12.74666667 | G82: 9.746666667 | H82: 11.52433333 | I82: 6.827333333 | J82: 5.901333333 | K82: 5.737333333 | L82: =0 -> 0
A83: 1.64 | B83: 11.272 | C83: 10.572 | D83: 248.51 | E83: 421.27 | F83: 12.79 | G83: 9.79 | H83: 11.538 | I83: 6.842 | J83: 5.924 | K83: 5.762 | L83: =0 -> 0
A84: 1.65 | B84: 11.30833333 | C84: 10.60833333 | D84: 248.9866667 | E84: 422.1783333 | F84: 12.83333333 | G84: 9.833333333 | H84: 11.55166667 | I84: 6.856666667 | J84: 5.946666667 | K84: 5.786666667 | L84: =0 -> 0
A85: 1.66 | B85: 11.34466667 | C85: 10.64466667 | D85: 249.4633333 | E85: 423.0866667 | F85: 12.87666667 | G85: 9.876666667 | H85: 11.56533333 | I85: 6.871333333 | J85: 5.969333333 | K85: 5.811333333 | L85: =0 -> 0
A86: 1.67 | B86: 11.381 | C86: 10.681 | D86: 249.94 | E86: 423.995 | F86: 12.92 | G86: 9.92 | H86: 11.579 | I86: 6.886 | J86: 5.992 | K86: 5.836 | L86: =0 -> 0
A87: 1.68 | B87: 11.41733333 | C87: 10.71733333 | D87: 250.4166667 | E87: 424.9033333 | F87: 12.96333333 | G87: 9.963333333 | H87: 11.59266667 | I87: 6.900666667 | J87: 6.014666667 | K87: 5.860666667 | L87: =0 -> 0
A88: 1.69 | B88: 11.45366667 | C88: 10.75366667 | D88: 250.8933333 | E88: 425.8116667 | F88: 13.00666667 | G88: 10.00666667 | H88: 11.60633333 | I88: 6.915333333 | J88: 6.037333333 | K88: 5.885333333 | L88: =0 -> 0
A89: 1.7 | B89: =B23 -> 11.49 | C89: =C23 -> 10.79 | D89: 251.37 | E89: 426.72 | F89: 13.05 | G89: 10.05 | H89: 11.62 | I89: 6.93 | J89: 6.06 | K89: 5.91 | L89: 1
A90: 1.71 | B90: 11.52633333 | C90: 10.82633333 | D90: 251.8466667 | E90: 427.6283333 | F90: 13.09333333 | G90: =IF($A90<=$A$24,FORECAST($A90,G$23:G$24,$A$23:$A$24),FORECAST($A90,G$24:G$25,$A$24:$A$25)) -> 10.09333333 | H90: 11.63366667 | I90: 6.944666667 | J90: 6.082666667 | K90: 5.934666667 | L90: =0 -> 0
A91: 1.72 | B91: =IF($A91<=$A$24,FORECAST($A91,B$23:B$24,$A$23:$A$24),FORECAST($A91,B$24:B$25,$A$24:$A$25)) -> 11.56266667 | C91: 10.86266667 | D91: 252.3233333 | E91: 428.5366667 | F91: 13.13666667 | G91: 10.13666667 | H91: 11.64733333 | I91: 6.959333333 | J91: 6.105333333 | K91: 5.959333333 | L91: =0 -> 0
A92: 1.73 | B92: 11.599 | C92: 10.899 | D92: 252.8 | E92: 429.445 | F92: 13.18 | G92: 10.18 | H92: 11.661 | I92: 6.974 | J92: 6.128 | K92: 5.984 | L92: =0 -> 0
A93: 1.74 | B93: 11.63533333 | C93: 10.93533333 | D93: 253.2766667 | E93: 430.3533333 | F93: 13.22333333 | G93: 10.22333333 | H93: 11.67466667 | I93: 6.988666667 | J93: 6.150666667 | K93: 6.008666667 | L93: =0 -> 0
A94: 1.75 | B94: 11.67166667 | C94: 10.97166667 | D94: 253.7533333 | E94: 431.2616667 | F94: 13.26666667 | G94: 10.26666667 | H94: 11.68833333 | I94: 7.003333333 | J94: 6.173333333 | K94: 6.033333333 | L94: =0 -> 0
A95: 1.76 | B95: 11.708 | C95: 11.008 | D95: 254.23 | E95: 432.17 | F95: 13.31 | G95: 10.31 | H95: 11.702 | I95: 7.018 | J95: 6.196 | K95: 6.058 | L95: =0 -> 0
A96: 1.77 | B96: 11.74433333 | C96: 11.04433333 | D96: 254.7066667 | E96: 433.0783333 | F96: 13.35333333 | G96: 10.35333333 | H96: 11.71566667 | I96: 7.032666667 | J96: 6.218666667 | K96: 6.082666667 | L96: =0 -> 0
A97: 1.78 | B97: 11.78066667 | C97: 11.08066667 | D97: 255.1833333 | E97: 433.9866667 | F97: 13.39666667 | G97: 10.39666667 | H97: 11.72933333 | I97: 7.047333333 | J97: 6.241333333 | K97: 6.107333333 | L97: =0 -> 0
A98: 1.79 | B98: 11.817 | C98: 11.117 | D98: 255.66 | E98: 434.895 | F98: 13.44 | G98: 10.44 | H98: 11.743 | I98: 7.062 | J98: 6.264 | K98: 6.132 | L98: =0 -> 0
A99: 1.8 | B99: 11.85333333 | C99: 11.15333333 | D99: 256.1366667 | E99: 435.8033333 | F99: 13.48333333 | G99: 10.48333333 | H99: 11.75666667 | I99: 7.076666667 | J99: 6.286666667 | K99: 6.156666667 | L99: =0 -> 0
A100: 1.81 | B100: 11.88966667 | C100: 11.18966667 | D100: 256.6133333 | E100: 436.7116667 | F100: 13.52666667 | G100: =IF($A100<=$A$24,FORECAST($A100,G$23:G$24,$A$23:$A$24),FORECAST($A100,G$24:G$25,$A$24:$A$25)) -> 10.52666667 | H100: 11.77033333 | I100: 7.091333333 | J100: 6.309333333 | K100: 6.181333333 | L100: =0 -> 0
A101: 1.82 | B101: =IF($A101<=$A$24,FORECAST($A101,B$23:B$24,$A$23:$A$24),FORECAST($A101,B$24:B$25,$A$24:$A$25)) -> 11.926 | C101: 11.226 | D101: 257.09 | E101: 437.62 | F101: 13.57 | G101: 10.57 | H101: 11.784 | I101: 7.106 | J101: 6.332 | K101: 6.206 | L101: =0 -> 0
A102: 1.83 | B102: 11.96233333 | C102: 11.26233333 | D102: 257.5666667 | E102: 438.5283333 | F102: 13.61333333 | G102: 10.61333333 | H102: 11.79766667 | I102: 7.120666667 | J102: 6.354666667 | K102: 6.230666667 | L102: =0 -> 0
A103: 1.84 | B103: 11.99866667 | C103: 11.29866667 | D103: 258.0433333 | E103: 439.4366667 | F103: 13.65666667 | G103: 10.65666667 | H103: 11.81133333 | I103: 7.135333333 | J103: 6.377333333 | K103: 6.255333333 | L103: =0 -> 0
A104: 1.85 | B104: 12.035 | C104: 11.335 | D104: 258.52 | E104: 440.345 | F104: 13.7 | G104: 10.7 | H104: 11.825 | I104: 7.15 | J104: 6.4 | K104: 6.28 | L104: =0 -> 0
A105: 1.86 | B105: 12.07133333 | C105: 11.37133333 | D105: 258.9966667 | E105: 441.2533333 | F105: 13.74333333 | G105: 10.74333333 | H105: 11.83866667 | I105: 7.164666667 | J105: 6.422666667 | K105: 6.304666667 | L105: =0 -> 0
A106: 1.87 | B106: 12.10766667 | C106: 11.40766667 | D106: 259.4733333 | E106: 442.1616667 | F106: 13.78666667 | G106: 10.78666667 | H106: 11.85233333 | I106: 7.179333333 | J106: 6.445333333 | K106: 6.329333333 | L106: =0 -> 0
A107: 1.88 | B107: 12.144 | C107: 11.444 | D107: 259.95 | E107: 443.07 | F107: 13.83 | G107: 10.83 | H107: 11.866 | I107: 7.194 | J107: 6.468 | K107: 6.354 | L107: =0 -> 0
A108: 1.89 | B108: 12.18033333 | C108: 11.48033333 | D108: 260.4266667 | E108: 443.9783333 | F108: 13.87333333 | G108: 10.87333333 | H108: 11.87966667 | I108: 7.208666667 | J108: 6.490666667 | K108: 6.378666667 | L108: =0 -> 0
A109: 1.9 | B109: 12.21666667 | C109: 11.51666667 | D109: 260.9033333 | E109: 444.8866667 | F109: 13.91666667 | G109: 10.91666667 | H109: 11.89333333 | I109: 7.223333333 | J109: 6.513333333 | K109: 6.403333333 | L109: =0 -> 0
A110: 1.91 | B110: 12.253 | C110: 11.553 | D110: 261.38 | E110: 445.795 | F110: 13.96 | G110: =IF($A110<=$A$24,FORECAST($A110,G$23:G$24,$A$23:$A$24),FORECAST($A110,G$24:G$25,$A$24:$A$25)) -> 10.96 | H110: 11.907 | I110: 7.238 | J110: 6.536 | K110: 6.428 | L110: =0 -> 0
A111: 1.92 | B111: =IF($A111<=$A$24,FORECAST($A111,B$23:B$24,$A$23:$A$24),FORECAST($A111,B$24:B$25,$A$24:$A$25)) -> 12.28933333 | C111: 11.58933333 | D111: 261.8566667 | E111: 446.7033333 | F111: 14.00333333 | G111: 11.00333333 | H111: 11.92066667 | I111: 7.252666667 | J111: 6.558666667 | K111: 6.452666667 | L111: =0 -> 0
A112: 1.93 | B112: 12.32566667 | C112: 11.62566667 | D112: 262.3333333 | E112: 447.6116667 | F112: 14.04666667 | G112: 11.04666667 | H112: 11.93433333 | I112: 7.267333333 | J112: 6.581333333 | K112: 6.477333333 | L112: =0 -> 0
A113: 1.94 | B113: 12.362 | C113: 11.662 | D113: 262.81 | E113: 448.52 | F113: 14.09 | G113: 11.09 | H113: 11.948 | I113: 7.282 | J113: 6.604 | K113: 6.502 | L113: =0 -> 0
A114: 1.95 | B114: 12.39833333 | C114: 11.69833333 | D114: 263.2866667 | E114: 449.4283333 | F114: 14.13333333 | G114: 11.13333333 | H114: 11.96166667 | I114: 7.296666667 | J114: 6.626666667 | K114: 6.526666667 | L114: =0 -> 0
A115: 1.96 | B115: 12.43466667 | C115: 11.73466667 | D115: 263.7633333 | E115: 450.3366667 | F115: 14.17666667 | G115: 11.17666667 | H115: 11.97533333 | I115: 7.311333333 | J115: 6.649333333 | K115: 6.551333333 | L115: =0 -> 0
A116: 1.97 | B116: 12.471 | C116: 11.771 | D116: 264.24 | E116: 451.245 | F116: 14.22 | G116: 11.22 | H116: 11.989 | I116: 7.326 | J116: 6.672 | K116: 6.576 | L116: =0 -> 0
A117: 1.98 | B117: 12.50733333 | C117: 11.80733333 | D117: 264.7166667 | E117: 452.1533333 | F117: 14.26333333 | G117: 11.26333333 | H117: 12.00266667 | I117: 7.340666667 | J117: 6.694666667 | K117: 6.600666667 | L117: =0 -> 0
A118: 1.99 | B118: 12.54366667 | C118: 11.84366667 | D118: 265.1933333 | E118: 453.0616667 | F118: 14.30666667 | G118: 11.30666667 | H118: 12.01633333 | I118: 7.355333333 | J118: 6.717333333 | K118: 6.625333333 | L118: =0 -> 0
A119: =A24 -> 2 | B119: =B24 -> 12.58 | C119: 11.88 | D119: 265.67 | E119: 453.97 | F119: 14.35 | G119: 11.35 | H119: 12.03 | I119: 7.37 | J119: 6.74 | K119: 6.65 | L119: 1
A120: 2.01 | B120: 12.61466667 | C120: 11.91466667 | D120: 266.1486667 | E120: 454.8816667 | F120: 14.39266667 | G120: =IF($A120<=$A$24,FORECAST($A120,G$23:G$24,$A$23:$A$24),FORECAST($A120,G$24:G$25,$A$24:$A$25)) -> 11.39266667 | H120: 12.04366667 | I120: 7.385 | J120: 6.762333333 | K120: 6.674666667 | L120: =0 -> 0
A121: 2.02 | B121: =IF($A121<=$A$24,FORECAST($A121,B$23:B$24,$A$23:$A$24),FORECAST($A121,B$24:B$25,$A$24:$A$25)) -> 12.64933333 | C121: 11.94933333 | D121: 266.6273333 | E121: 455.7933333 | F121: 14.43533333 | G121: 11.43533333 | H121: 12.05733333 | I121: 7.4 | J121: 6.784666667 | K121: 6.699333333 | L121: =0 -> 0
A122: 2.03 | B122: 12.684 | C122: 11.984 | D122: 267.106 | E122: 456.705 | F122: 14.478 | G122: 11.478 | H122: 12.071 | I122: 7.415 | J122: 6.807 | K122: 6.724 | L122: =0 -> 0
A123: 2.04 | B123: 12.71866667 | C123: 12.01866667 | D123: 267.5846667 | E123: 457.6166667 | F123: 14.52066667 | G123: 11.52066667 | H123: 12.08466667 | I123: 7.43 | J123: 6.829333333 | K123: 6.748666667 | L123: =0 -> 0
A124: 2.05 | B124: 12.75333333 | C124: 12.05333333 | D124: 268.0633333 | E124: 458.5283333 | F124: 14.56333333 | G124: 11.56333333 | H124: 12.09833333 | I124: 7.445 | J124: 6.851666667 | K124: 6.773333333 | L124: =0 -> 0
A125: 2.06 | B125: 12.788 | C125: 12.088 | D125: 268.542 | E125: 459.44 | F125: 14.606 | G125: 11.606 | H125: 12.112 | I125: 7.46 | J125: 6.874 | K125: 6.798 | L125: =0 -> 0
A126: 2.07 | B126: 12.82266667 | C126: 12.12266667 | D126: 269.0206667 | E126: 460.3516667 | F126: =G126+B$20 -> 14.64866667 | G126: 11.64866667 | H126: 12.12566667 | I126: 7.475 | J126: 6.896333333 | K126: 6.822666667 | L126: =0 -> 0
A127: =ROUND(A126+0.01,2) -> 2.08 | B127: 12.85733333 | C127: 12.15733333 | D127: 269.4993333 | E127: 461.2633333 | F127: 14.69133333 | G127: 11.69133333 | H127: 12.13933333 | I127: 7.49 | J127: 6.918666667 | K127: 6.847333333 | L127: =0 -> 0
A128: 2.09 | B128: 12.892 | C128: 12.192 | D128: 269.978 | E128: 462.175 | F128: 14.734 | G128: 11.734 | H128: 12.153 | I128: 7.505 | J128: 6.941 | K128: 6.872 | L128: =0 -> 0
A129: 2.1 | B129: 12.92666667 | C129: 12.22666667 | D129: 270.4566667 | E129: 463.0866667 | F129: 14.77666667 | G129: 11.77666667 | H129: 12.16666667 | I129: 7.52 | J129: 6.963333333 | K129: 6.896666667 | L129: =0 -> 0
A130: 2.11 | B130: 12.96133333 | C130: 12.26133333 | D130: 270.9353333 | E130: 463.9983333 | F130: 14.81933333 | G130: =IF($A130<=$A$24,FORECAST($A130,G$23:G$24,$A$23:$A$24),FORECAST($A130,G$24:G$25,$A$24:$A$25)) -> 11.81933333 | H130: 12.18033333 | I130: 7.535 | J130: 6.985666667 | K130: 6.921333333 | L130: =0 -> 0
A131: 2.12 | B131: =IF($A131<=$A$24,FORECAST($A131,B$23:B$24,$A$23:$A$24),FORECAST($A131,B$24:B$25,$A$24:$A$25)) -> 12.996 | C131: 12.296 | D131: 271.414 | E131: 464.91 | F131: 14.862 | G131: 11.862 | H131: 12.194 | I131: 7.55 | J131: 7.008 | K131: 6.946 | L131: 0
A132: 2.13 | B132: 13.03066667 | C132: 12.33066667 | D132: 271.8926667 | E132: 465.8216667 | F132: 14.90466667 | G132: 11.90466667 | H132: 12.20766667 | I132: 7.565 | J132: 7.030333333 | K132: 6.970666667 | L132: 0
A133: 2.14 | B133: 13.06533333 | C133: 12.36533333 | D133: 272.3713333 | E133: 466.7333333 | F133: 14.94733333 | G133: 11.94733333 | H133: 12.22133333 | I133: 7.58 | J133: 7.052666667 | K133: 6.995333333 | L133: 0
A134: 2.15 | B134: 13.1 | C134: 12.4 | D134: 272.85 | E134: 467.645 | F134: 14.99 | G134: 11.99 | H134: 12.235 | I134: 7.595 | J134: 7.075 | K134: 7.02 | L134: 0
A135: 2.16 | B135: 13.13466667 | C135: 12.43466667 | D135: 273.3286667 | E135: 468.5566667 | F135: 15.03266667 | G135: 12.03266667 | H135: 12.24866667 | I135: 7.61 | J135: 7.097333333 | K135: 7.044666667 | L135: 0
A136: 2.17 | B136: 13.16933333 | C136: 12.46933333 | D136: 273.8073333 | E136: 469.4683333 | F136: 15.07533333 | G136: 12.07533333 | H136: 12.26233333 | I136: 7.625 | J136: 7.119666667 | K136: 7.069333333 | L136: 0
A137: 2.18 | B137: 13.204 | C137: 12.504 | D137: 274.286 | E137: 470.38 | F137: 15.118 | G137: 12.118 | H137: 12.276 | I137: 7.64 | J137: 7.142 | K137: 7.094 | L137: 0
A138: 2.19 | B138: 13.23866667 | C138: 12.53866667 | D138: 274.7646667 | E138: 471.2916667 | F138: 15.16066667 | G138: 12.16066667 | H138: 12.28966667 | I138: 7.655 | J138: 7.164333333 | K138: 7.118666667 | L138: 0
A139: 2.2 | B139: 13.27333333 | C139: 12.57333333 | D139: 275.2433333 | E139: 472.2033333 | F139: 15.20333333 | G139: 12.20333333 | H139: 12.30333333 | I139: 7.67 | J139: 7.186666667 | K139: 7.143333333 | L139: 0
A140: 2.21 | B140: 13.308 | C140: 12.608 | D140: 275.722 | E140: 473.115 | F140: 15.246 | G140: =IF($A140<=$A$24,FORECAST($A140,G$23:G$24,$A$23:$A$24),FORECAST($A140,G$24:G$25,$A$24:$A$25)) -> 12.246 | H140: 12.317 | I140: 7.685 | J140: 7.209 | K140: 7.168 | L140: 0
A141: 2.22 | B141: =IF($A141<=$A$24,FORECAST($A141,B$23:B$24,$A$23:$A$24),FORECAST($A141,B$24:B$25,$A$24:$A$25)) -> 13.34266667 | C141: 12.64266667 | D141: 276.2006667 | E141: 474.0266667 | F141: 15.28866667 | G141: 12.28866667 | H141: 12.33066667 | I141: 7.7 | J141: 7.231333333 | K141: 7.192666667 | L141: 0
A142: 2.23 | B142: 13.37733333 | C142: 12.67733333 | D142: 276.6793333 | E142: 474.9383333 | F142: 15.33133333 | G142: 12.33133333 | H142: 12.34433333 | I142: 7.715 | J142: 7.253666667 | K142: 7.217333333 | L142: 0
A143: 2.24 | B143: 13.412 | C143: 12.712 | D143: 277.158 | E143: 475.85 | F143: 15.374 | G143: 12.374 | H143: 12.358 | I143: 7.73 | J143: 7.276 | K143: 7.242 | L143: 0
A144: 2.25 | B144: 13.44666667 | C144: 12.74666667 | D144: 277.6366667 | E144: 476.7616667 | F144: 15.41666667 | G144: 12.41666667 | H144: 12.37166667 | I144: 7.745 | J144: 7.298333333 | K144: 7.266666667 | L144: 0
A145: 2.26 | B145: 13.48133333 | C145: 12.78133333 | D145: 278.1153333 | E145: 477.6733333 | F145: 15.45933333 | G145: 12.45933333 | H145: 12.38533333 | I145: 7.76 | J145: 7.320666667 | K145: 7.291333333 | L145: 0
A146: 2.27 | B146: 13.516 | C146: 12.816 | D146: 278.594 | E146: 478.585 | F146: 15.502 | G146: 12.502 | H146: 12.399 | I146: 7.775 | J146: 7.343 | K146: 7.316 | L146: 0
A147: 2.28 | B147: 13.55066667 | C147: 12.85066667 | D147: 279.0726667 | E147: 479.4966667 | F147: 15.54466667 | G147: 12.54466667 | H147: 12.41266667 | I147: 7.79 | J147: 7.365333333 | K147: 7.340666667 | L147: 0
A148: 2.29 | B148: 13.58533333 | C148: 12.88533333 | D148: 279.5513333 | E148: 480.4083333 | F148: 15.58733333 | G148: 12.58733333 | H148: 12.42633333 | I148: 7.805 | J148: 7.387666667 | K148: 7.365333333 | L148: 0
A149: =A25 -> 2.3 | B149: =B25 -> 13.62 | C149: 12.92 | D149: 280.03 | E149: 481.32 | F149: 15.63 | G149: 12.63 | H149: 12.44 | I149: 7.82 | J149: 7.41 | K149: 7.39 | L149: 1
A150: 2.31 | B150: 13.65466667 | C150: 12.95466667 | D150: 280.5086667 | E150: 482.2316667 | F150: 15.67266667 | G150: =IF($A150<=$A$24,FORECAST($A150,G$23:G$24,$A$23:$A$24),FORECAST($A150,G$24:G$25,$A$24:$A$25)) -> 12.67266667 | H150: 12.45366667 | I150: 7.835 | J150: 7.432333333 | K150: 7.414666667 | L150: 0
A151: 2.32 | B151: =IF($A151<=$A$24,FORECAST($A151,B$23:B$24,$A$23:$A$24),FORECAST($A151,B$24:B$25,$A$24:$A$25)) -> 13.68933333 | C151: 12.98933333 | D151: 280.9873333 | E151: 483.1433333 | F151: 15.71533333 | G151: 12.71533333 | H151: 12.46733333 | I151: 7.85 | J151: 7.454666667 | K151: 7.439333333 | L151: 0
A152: 2.33 | B152: 13.724 | C152: 13.024 | D152: 281.466 | E152: 484.055 | F152: 15.758 | G152: 12.758 | H152: 12.481 | I152: 7.865 | J152: 7.477 | K152: 7.464 | L152: 0
A153: 2.34 | B153: 13.75866667 | C153: 13.05866667 | D153: 281.9446667 | E153: 484.9666667 | F153: 15.80066667 | G153: 12.80066667 | H153: 12.49466667 | I153: 7.88 | J153: 7.499333333 | K153: 7.488666667 | L153: 0
A154: 2.35 | B154: 13.79333333 | C154: 13.09333333 | D154: 282.4233333 | E154: 485.8783333 | F154: 15.84333333 | G154: 12.84333333 | H154: 12.50833333 | I154: 7.895 | J154: 7.521666667 | K154: 7.513333333 | L154: 0
A155: 2.36 | B155: 13.828 | C155: 13.128 | D155: 282.902 | E155: 486.79 | F155: 15.886 | G155: 12.886 | H155: 12.522 | I155: 7.91 | J155: 7.544 | K155: 7.538 | L155: 0
A156: 2.37 | B156: 13.86266667 | C156: 13.16266667 | D156: 283.3806667 | E156: 487.7016667 | F156: 15.92866667 | G156: 12.92866667 | H156: 12.53566667 | I156: 7.925 | J156: 7.566333333 | K156: 7.562666667 | L156: 0
A157: 2.38 | B157: 13.89733333 | C157: 13.19733333 | D157: 283.8593333 | E157: 488.6133333 | F157: 15.97133333 | G157: 12.97133333 | H157: 12.54933333 | I157: 7.94 | J157: 7.588666667 | K157: 7.587333333 | L157: 0
A158: 2.39 | B158: 13.932 | C158: 13.232 | D158: 284.338 | E158: 489.525 | F158: 16.014 | G158: 13.014 | H158: 12.563 | I158: 7.955 | J158: 7.611 | K158: 7.612 | L158: 0
A159: 2.4 | B159: 13.96666667 | C159: 13.26666667 | D159: 284.8166667 | E159: 490.4366667 | F159: 16.05666667 | G159: 13.05666667 | H159: 12.57666667 | I159: 7.97 | J159: 7.633333333 | K159: 7.636666667 | L159: 0
A160: 2.41 | B160: 14.00133333 | C160: 13.30133333 | D160: 285.2953333 | E160: 491.3483333 | F160: 16.09933333 | G160: =IF($A160<=$A$24,FORECAST($A160,G$23:G$24,$A$23:$A$24),FORECAST($A160,G$24:G$25,$A$24:$A$25)) -> 13.09933333 | H160: 12.59033333 | I160: 7.985 | J160: 7.655666667 | K160: 7.661333333 | L160: 0
A161: 2.42 | B161: =IF($A161<=$A$24,FORECAST($A161,B$23:B$24,$A$23:$A$24),FORECAST($A161,B$24:B$25,$A$24:$A$25)) -> 14.036 | C161: 13.336 | D161: 285.774 | E161: 492.26 | F161: 16.142 | G161: 13.142 | H161: 12.604 | I161: 8 | J161: 7.678 | K161: 7.686 | L161: 0
A162: 2.43 | B162: 14.07066667 | C162: 13.37066667 | D162: 286.2526667 | E162: 493.1716667 | F162: 16.18466667 | G162: 13.18466667 | H162: 12.61766667 | I162: 8.015 | J162: 7.700333333 | K162: 7.710666667 | L162: 0
A163: 2.44 | B163: 14.10533333 | C163: 13.40533333 | D163: 286.7313333 | E163: 494.0833333 | F163: 16.22733333 | G163: 13.22733333 | H163: 12.63133333 | I163: 8.03 | J163: 7.722666667 | K163: 7.735333333 | L163: 0
A164: 2.45 | B164: 14.14 | C164: 13.44 | D164: 287.21 | E164: 494.995 | F164: 16.27 | G164: 13.27 | H164: 12.645 | I164: 8.045 | J164: 7.745 | K164: 7.76 | L164: 0
A165: 2.46 | B165: 14.17466667 | C165: 13.47466667 | D165: 287.6886667 | E165: 495.9066667 | F165: 16.31266667 | G165: 13.31266667 | H165: 12.65866667 | I165: 8.06 | J165: 7.767333333 | K165: 7.784666667 | L165: 0
A166: 2.47 | B166: 14.20933333 | C166: 13.50933333 | D166: 288.1673333 | E166: 496.8183333 | F166: 16.35533333 | G166: 13.35533333 | H166: 12.67233333 | I166: 8.075 | J166: 7.789666667 | K166: 7.809333333 | L166: 0
A167: 2.48 | B167: 14.244 | C167: 13.544 | D167: 288.646 | E167: 497.73 | F167: 16.398 | G167: 13.398 | H167: 12.686 | I167: 8.09 | J167: 7.812 | K167: 7.834 | L167: 0
A168: 2.49 | B168: 14.27866667 | C168: 13.57866667 | D168: 289.1246667 | E168: 498.6416667 | F168: 16.44066667 | G168: 13.44066667 | H168: 12.69966667 | I168: 8.105 | J168: 7.834333333 | K168: 7.858666667 | L168: 0
A169: 2.5 | B169: 14.31333333 | C169: 13.61333333 | D169: 289.6033333 | E169: 499.5533333 | F169: 16.48333333 | G169: 13.48333333 | H169: 12.71333333 | I169: 8.12 | J169: 7.856666667 | K169: 7.883333333 | L169: 0
A170: 2.51 | B170: 14.348 | C170: 13.648 | D170: 290.082 | E170: 500.465 | F170: 16.526 | G170: =IF($A170<=$A$24,FORECAST($A170,G$23:G$24,$A$23:$A$24),FORECAST($A170,G$24:G$25,$A$24:$A$25)) -> 13.526 | H170: 12.727 | I170: 8.135 | J170: 7.879 | K170: 7.908 | L170: 0
A171: 2.52 | B171: =IF($A171<=$A$24,FORECAST($A171,B$23:B$24,$A$23:$A$24),FORECAST($A171,B$24:B$25,$A$24:$A$25)) -> 14.38266667 | C171: 13.68266667 | D171: 290.5606667 | E171: 501.3766667 | F171: 16.56866667 | G171: 13.56866667 | H171: 12.74066667 | I171: 8.15 | J171: 7.901333333 | K171: 7.932666667 | L171: 0
A172: 2.53 | B172: 14.41733333 | C172: 13.71733333 | D172: 291.0393333 | E172: 502.2883333 | F172: 16.61133333 | G172: 13.61133333 | H172: 12.75433333 | I172: 8.165 | J172: 7.923666667 | K172: 7.957333333 | L172: 0
A173: 2.54 | B173: 14.452 | C173: 13.752 | D173: 291.518 | E173: 503.2 | F173: 16.654 | G173: 13.654 | H173: 12.768 | I173: 8.18 | J173: 7.946 | K173: 7.982 | L173: 0
A174: 2.55 | B174: 14.48666667 | C174: 13.78666667 | D174: 291.9966667 | E174: 504.1116667 | F174: 16.69666667 | G174: 13.69666667 | H174: 12.78166667 | I174: 8.195 | J174: 7.968333333 | K174: 8.006666667 | L174: 0
A175: 2.56 | B175: 14.52133333 | C175: 13.82133333 | D175: 292.4753333 | E175: 505.0233333 | F175: 16.73933333 | G175: 13.73933333 | H175: 12.79533333 | I175: 8.21 | J175: 7.990666667 | K175: 8.031333333 | L175: 0
A176: 2.57 | B176: 14.556 | C176: 13.856 | D176: 292.954 | E176: 505.935 | F176: 16.782 | G176: 13.782 | H176: 12.809 | I176: 8.225 | J176: 8.013 | K176: 8.056 | L176: 0
A177: 2.58 | B177: 14.59066667 | C177: 13.89066667 | D177: 293.4326667 | E177: 506.8466667 | F177: 16.82466667 | G177: 13.82466667 | H177: 12.82266667 | I177: 8.24 | J177: 8.035333333 | K177: 8.080666667 | L177: 0
A178: 2.59 | B178: 14.62533333 | C178: 13.92533333 | D178: 293.9113333 | E178: 507.7583333 | F178: 16.86733333 | G178: 13.86733333 | H178: 12.83633333 | I178: 8.255 | J178: 8.057666667 | K178: 8.105333333 | L178: 0
A179: 2.6 | B179: 14.66 | C179: 13.96 | D179: 294.39 | E179: 508.67 | F179: 16.91 | G179: 13.91 | H179: 12.85 | I179: 8.27 | J179: 8.08 | K179: 8.13 | L179: 0
A180: 2.61 | B180: 14.69466667 | C180: 13.99466667 | D180: 294.8686667 | E180: 509.5816667 | F180: 16.95266667 | G180: =IF($A180<=$A$24,FORECAST($A180,G$23:G$24,$A$23:$A$24),FORECAST($A180,G$24:G$25,$A$24:$A$25)) -> 13.95266667 | H180: 12.86366667 | I180: 8.285 | J180: 8.102333333 | K180: 8.154666667 | L180: 0
A181: 2.62 | B181: =IF($A181<=$A$24,FORECAST($A181,B$23:B$24,$A$23:$A$24),FORECAST($A181,B$24:B$25,$A$24:$A$25)) -> 14.72933333 | C181: 14.02933333 | D181: 295.3473333 | E181: 510.4933333 | F181: 16.99533333 | G181: 13.99533333 | H181: 12.87733333 | I181: 8.3 | J181: 8.124666667 | K181: 8.179333333 | L181: 0
A182: 2.63 | B182: 14.764 | C182: 14.064 | D182: 295.826 | E182: 511.405 | F182: 17.038 | G182: 14.038 | H182: 12.891 | I182: 8.315 | J182: 8.147 | K182: 8.204 | L182: 0
A183: 2.64 | B183: 14.79866667 | C183: 14.09866667 | D183: 296.3046667 | E183: 512.3166667 | F183: 17.08066667 | G183: 14.08066667 | H183: 12.90466667 | I183: 8.33 | J183: 8.169333333 | K183: 8.228666667 | L183: 0
A184: 2.65 | B184: 14.83333333 | C184: 14.13333333 | D184: 296.7833333 | E184: 513.2283333 | F184: 17.12333333 | G184: 14.12333333 | H184: 12.91833333 | I184: 8.345 | J184: 8.191666667 | K184: 8.253333333 | L184: 0
A185: 2.66 | B185: 14.868 | C185: 14.168 | D185: 297.262 | E185: 514.14 | F185: 17.166 | G185: 14.166 | H185: 12.932 | I185: 8.36 | J185: 8.214 | K185: 8.278 | L185: 0
A186: 2.67 | B186: 14.90266667 | C186: 14.20266667 | D186: 297.7406667 | E186: 515.0516667 | F186: 17.20866667 | G186: 14.20866667 | H186: 12.94566667 | I186: 8.375 | J186: 8.236333333 | K186: 8.302666667 | L186: 0
A187: 2.68 | B187: 14.93733333 | C187: 14.23733333 | D187: 298.2193333 | E187: 515.9633333 | F187: 17.25133333 | G187: 14.25133333 | H187: 12.95933333 | I187: 8.39 | J187: 8.258666667 | K187: 8.327333333 | L187: 0
A188: 2.69 | B188: 14.972 | C188: 14.272 | D188: 298.698 | E188: 516.875 | F188: 17.294 | G188: 14.294 | H188: 12.973 | I188: 8.405 | J188: 8.281 | K188: 8.352 | L188: 0
A189: 2.7 | B189: 15.00666667 | C189: 14.30666667 | D189: 299.1766667 | E189: 517.7866667 | F189: 17.33666667 | G189: 14.33666667 | H189: 12.98666667 | I189: 8.42 | J189: 8.303333333 | K189: 8.376666667 | L189: 0
A190: 2.71 | B190: 15.04133333 | C190: 14.34133333 | D190: 299.6553333 | E190: 518.6983333 | F190: =G190+B$20 -> 17.37933333 | G190: =IF($A190<=$A$24,FORECAST($A190,G$23:G$24,$A$23:$A$24),FORECAST($A190,G$24:G$25,$A$24:$A$25)) -> 14.37933333 | H190: 13.00033333 | I190: 8.435 | J190: 8.325666667 | K190: 8.401333333 | L190: 0
A191: =ROUND(A190+0.01,2) -> 2.72 | B191: =IF($A191<=$A$24,FORECAST($A191,B$23:B$24,$A$23:$A$24),FORECAST($A191,B$24:B$25,$A$24:$A$25)) -> 15.076 | C191: 14.376 | D191: 300.134 | E191: 519.61 | F191: 17.422 | G191: 14.422 | H191: 13.014 | I191: 8.45 | J191: 8.348 | K191: 8.426 | L191: 0
A192: 2.73 | B192: 15.11066667 | C192: 14.41066667 | D192: 300.6126667 | E192: 520.5216667 | F192: 17.46466667 | G192: 14.46466667 | H192: 13.02766667 | I192: 8.465 | J192: 8.370333333 | K192: 8.450666667 | L192: 0
A193: 2.74 | B193: 15.14533333 | C193: 14.44533333 | D193: 301.0913333 | E193: 521.4333333 | F193: 17.50733333 | G193: 14.50733333 | H193: 13.04133333 | I193: 8.48 | J193: 8.392666667 | K193: 8.475333333 | L193: 0
A194: 2.75 | B194: 15.18 | C194: 14.48 | D194: 301.57 | E194: 522.345 | F194: 17.55 | G194: 14.55 | H194: 13.055 | I194: 8.495 | J194: 8.415 | K194: 8.5 | L194: 0
A195: 2.76 | B195: 15.21466667 | C195: 14.51466667 | D195: 302.0486667 | E195: 523.2566667 | F195: 17.59266667 | G195: 14.59266667 | H195: 13.06866667 | I195: 8.51 | J195: 8.437333333 | K195: 8.524666667 | L195: 0
A196: 2.77 | B196: 15.24933333 | C196: 14.54933333 | D196: 302.5273333 | E196: 524.1683333 | F196: 17.63533333 | G196: 14.63533333 | H196: 13.08233333 | I196: 8.525 | J196: 8.459666667 | K196: 8.549333333 | L196: 0
A197: 2.78 | B197: 15.284 | C197: 14.584 | D197: 303.006 | E197: 525.08 | F197: 17.678 | G197: 14.678 | H197: 13.096 | I197: 8.54 | J197: 8.482 | K197: 8.574 | L197: 0
A198: 2.79 | B198: 15.31866667 | C198: 14.61866667 | D198: 303.4846667 | E198: 525.9916667 | F198: 17.72066667 | G198: 14.72066667 | H198: 13.10966667 | I198: 8.555 | J198: 8.504333333 | K198: 8.598666667 | L198: 0
A199: 2.8 | B199: 15.35333333 | C199: 14.65333333 | D199: 303.9633333 | E199: 526.9033333 | F199: 17.76333333 | G199: 14.76333333 | H199: 13.12333333 | I199: 8.57 | J199: 8.526666667 | K199: 8.623333333 | L199: 0
A200: 2.81 | B200: 15.388 | C200: 14.688 | D200: 304.442 | E200: 527.815 | F200: 17.806 | G200: =IF($A200<=$A$24,FORECAST($A200,G$23:G$24,$A$23:$A$24),FORECAST($A200,G$24:G$25,$A$24:$A$25)) -> 14.806 | H200: 13.137 | I200: 8.585 | J200: 8.549 | K200: 8.648 | L200: 0
A201: 2.82 | B201: =IF($A201<=$A$24,FORECAST($A201,B$23:B$24,$A$23:$A$24),FORECAST($A201,B$24:B$25,$A$24:$A$25)) -> 15.42266667 | C201: 14.72266667 | D201: 304.9206667 | E201: 528.7266667 | F201: 17.84866667 | G201: 14.84866667 | H201: 13.15066667 | I201: 8.6 | J201: 8.571333333 | K201: 8.672666667 | L201: 0
A202: 2.83 | B202: 15.45733333 | C202: 14.75733333 | D202: 305.3993333 | E202: 529.6383333 | F202: 17.89133333 | G202: 14.89133333 | H202: 13.16433333 | I202: 8.615 | J202: 8.593666667 | K202: 8.697333333 | L202: 0
A203: 2.84 | B203: 15.492 | C203: 14.792 | D203: 305.878 | E203: 530.55 | F203: 17.934 | G203: 14.934 | H203: 13.178 | I203: 8.63 | J203: 8.616 | K203: 8.722 | L203: 0
A204: 2.85 | B204: 15.52666667 | C204: 14.82666667 | D204: 306.3566667 | E204: 531.4616667 | F204: 17.97666667 | G204: 14.97666667 | H204: 13.19166667 | I204: 8.645 | J204: 8.638333333 | K204: 8.746666667 | L204: 0
A205: 2.86 | B205: 15.56133333 | C205: 14.86133333 | D205: 306.8353333 | E205: 532.3733333 | F205: 18.01933333 | G205: 15.01933333 | H205: 13.20533333 | I205: 8.66 | J205: 8.660666667 | K205: 8.771333333 | L205: 0
A206: 2.87 | B206: 15.596 | C206: 14.896 | D206: 307.314 | E206: 533.285 | F206: 18.062 | G206: 15.062 | H206: 13.219 | I206: 8.675 | J206: 8.683 | K206: 8.796 | L206: 0
A207: 2.88 | B207: 15.63066667 | C207: 14.93066667 | D207: 307.7926667 | E207: 534.1966667 | F207: 18.10466667 | G207: 15.10466667 | H207: 13.23266667 | I207: 8.69 | J207: 8.705333333 | K207: 8.820666667 | L207: 0
... 24 more rows
